{"text_format":"1","workbook":"xlsx","n_sheets":8,"sheets":["Instructions","Outstanding Errors and Warnings","Section A. Local CSBG Expen","Section B. Local Agency Capacit","Section C. Local CSBG Resources","Identification","XML Export Map","Lookups"],"not_rendered":{"charts":0,"images":0,"macros":1,"external_links":0,"defined_names":238,"comments":2,"pivot_tables":0},"unopened":[],"bounds":{"document_bytes":16777216,"sheet_cells":100000,"rows_first":2000,"rows_last":500,"rows_between":2000,"halvings":0,"cell_chars":16384,"cell_head_chars":4096},"cells_cut":0,"cells_raw":0,"read":"whole","date_system":"1900"}

{"sheet":"Instructions","index":0,"n_rows":14,"n_cols":3,"rows_kept":14,"cut":false,"hidden":false,"merged":[[13,1,13,3],[3,1,3,3],[11,1,11,3],[5,1,5,3],[6,1,6,3],[7,1,7,3],[8,1,8,3],[9,1,9,3],[10,1,10,3]]}
[]
[null,null,"Instructional Notes"]
[]
[null,"Module 2, Section A: CSBG Expenditures by CSBG Eligible Entity "]
[]
[null,"Section A: CSBG Expenditures by CSBG Eligible Entity Data Entry Form meets the Congressional requirement for an explanation of the total amount of CSBG funding expended during the reporting period (identified below) based on categories referenced in the CSBG Act. "]
[null,"CSBG funding expended during the reporting period should be identified in the domain that best reflects the services delivered and strategies implemented, as well as the administrative costs associated with the domains. "]
[null,"Module 2, Section B: CSBG Eligible Entity Capacity Building"]
[]
[null,"Section B: CSBG Eligible Entity Capacity Building Data Entry Form provides detail on agency capacity building funded by CSBG and other funding sources. "]
[]
[null,"Module 2, Section C: Allocated Resources per CSBG Eligible Entity "]
[]
[null,"Section C: Allocated Resources per CSBG Eligible Entity data entry form provides data on resources allocated to, administered through, and generated by the CSBG Eligible Entity.  This report provides valuable information on how CSBG  leverages funds from multiple federal, state, local, and private sources as required in the CSBG Act. \n\n"]

{"sheet":"Outstanding Errors and Warnings","index":1,"n_rows":14,"n_cols":6,"rows_kept":14,"cut":false,"hidden":false,"merged":[[3,1,3,4]]}
[]
[null,null,null,null,"Double click in any row to go to the cell that generated the error or warning."]
[]
[null,"Module 2 Errors and Warnings"]
[null,"Tab","Data Field","Severity","Message Description","A3_Admin"]
[null,"Section A. Local CSBG Expen","A.2a. CSBG Expenditures Domains - Employment","Warning","The value entered for the current year is either more than double or less than half of the value reported last year.","M2A2aEmployment"]
[null,"Section A. Local CSBG Expen","A.2c. CSBG Expenditures Domains - Income, Infrastructure, and Asset Building","Warning","The value entered for the current year is either more than double or less than half of the value reported last year.","M2A2cIncome"]
[null,"Section A. Local CSBG Expen","A.2d. CSBG Expenditures Domains - Housing","Warning","The value entered for the current year is greater than $0.00, while last year, the value reported here was $0.00.","M2A2dHousing"]
[null,"Section A. Local CSBG Expen","A.2e. CSBG Expenditures Domains - Health and Social/Behavioral Development","Warning","The value entered for the current year is either more than double or less than half of the value reported last year.","M2A2eHealth"]
[null,"Section A. Local CSBG Expen","A.2h. CSBG Expenditures Domains - Linkages","Warning","The value entered for the current year is greater than $0.00, while last year, the value reported here was $0.00.","M2A2hLinkages"]
[null,"Section A. Local CSBG Expen","A.2i. CSBG Expenditures Domains - Agency Capacity Building","Warning","The value entered for the current year is either more than double or less than half of the value reported last year.","M2A2iCapacity"]
[null,"Section A. Local CSBG Expen","A.3. CSBG Expenditures Domains - Administration","Warning","The value entered for the current year is either more than double or less than half of the value reported last year.","M2A3Admin"]
[null,"Section C. Local CSBG Resources","C.2. CSBG Resources Allocated","Warning","The value entered for the current year is either more than double or less than half of the value reported last year.","M2C2AmtAllocated"]
[null,"Section C. Local CSBG Resources","C.3c.3. Federal Resources Allocated - USDA - Other Food Programs","Warning","The value entered for the current year is $0.00, while last year, the value reported here was greater than $0.00.","M2C3c3USDAFood"]

{"sheet":"Section A. Local CSBG Expen","index":2,"n_rows":40,"n_cols":7,"rows_kept":40,"cut":false,"hidden":false,"merged":[[35,5,35,6],[37,5,37,6],[38,5,38,6],[39,5,39,6],[6,5,7,6],[28,5,28,6],[29,5,29,6],[30,5,30,6],[31,5,33,6],[34,5,34,6],[39,1,39,2],[37,1,37,2],[38,1,38,2],[0,1,0,2],[28,1,28,2],[30,1,30,2],[35,1,35,2],[31,1,33,2],[29,1,29,2],[1,1,1,2],[2,1,2,2],[34,1,34,2]]}
[null,"Module 2, Section A: CSBG CARES Supplemental Expenditures by CSBG Eligible Entity"]
[null,"Name of CSBG Eligible Entity (enter below): "]
[null,"Southeastern Utah Association of Local Governments"]
[null,"State Name (enter below):","DUNS"]
[null,"Utah","097758627"]
[]
[null,"A.1  CSBG Eligible Entity Reporting Period: ","\"X\"",null,null,"Prior Year Reported"]
[null,"A.1a.  July 1-June 30"]
[null,"A.1b.  October 1-September 30"]
[null,"A.1c.  January 1-December 31"]
[]
[null,"A.2. Amount of FY 2021 CSBG CARES Supplemental allocated to reporting entity:",170401,null,null,"A.2. Amount of FY 2020 CSBG CARES Supplemental allocated to reporting entity:",73092]
[]
[null,"A.3  CSBG CARES Supplemental Expenditures Domains \n","CSBG CARES Funds",null,null,"A.3  CSBG CARES Supplemental Expenditures Domains \n","CSBG CARES Funds"]
[null,"A.3a.  Employment",12249,null,null,"A.3a.  Employment",2153]
[null,"A.3b.  Education and Cognitive Development",null,null,null,"A.3b.  Education and Cognitive Development"]
[null,"A.3c.  Income, Infrastructure, and Asset Building",2378,null,null,"A.3c.  Income, Infrastructure, and Asset Building",989]
[null,"A.3d.  Housing",2789,null,null,"A.3d.  Housing"]
[null,"A.3e.  Health and Social/Behavioral Development (includes nutrition)",14481,null,null,"A.3e.  Health and Social/Behavioral Development (includes nutrition)",1566]
[null,"A.3f.  Civic Engagement and Community Involvement",null,null,null,"A.3f.  Civic Engagement and Community Involvement"]
[null,"A.3g.  Services Supporting Multiple Domains  ",null,null,null,"A.3g.  Services Supporting Multiple Domains  "]
[null,"A.3h.  Linkages (e.g. partnerships that support multiple domains for the specific purposes of disaster and/or emergency services)",1244,null,null,"A.3h.  Linkages (e.g. partnerships that support multiple domains for the specific purposes of disaster and/or emergency services)"]
[null,"A.3i.  Agency Capacity Building (detailed below in Table A.5)",3799,null,null,"A.3i.  Agency Capacity Building (detailed below in Table A.5)",1619]
[null,"A.3j.  Other (e.g. emergency management/disaster relief)",null,null,null,"A.3j.  Other (e.g. emergency management/disaster relief)"]
[null,"A.3k.   Total CSBG Expenditures (auto calculated)    ",{"$f":"SUM(C15:C24)","v":36940},null,null,"A.3k.   Total CSBG Expenditures (auto calculated)    ",{"$f":"SUM(G15:G24)","v":6327}]
[]
[null,"A.4  Of the CSBG funds reported above, report the total amount used for Administration. For more information on what qualifies as Administration, refer to IM37.",3277,null,null,"A.4  Of the CSBG funds reported above, report the total amount used for Administration. For more information on what qualifies as Administration, refer to IM37.",948]
[]
[null,"A.5  Details on Agency Capacity Building Activities Funded by CSBG:",null,null,null,"A.5  Details on Agency Capacity Building Activities Funded by CSBG:"]
[null,"A.5.1.   Please identify which activities were funded by CSBG under Agency Capacity in Table A.3. Please check all that apply.",null,null,null,"A.5.1.   Please identify which activities were funded by CSBG under Agency Capacity in Table A.3. Please check all that apply."]
[null,{"$f":"IF(AND(A41_Activities=0,C23<>0),\" ERROR: You must select at least 1 checkbox since you reported funds in A.2i\",\" \")","v":" "}]
[]
[]
[]
[null,"A.5.1.oth.  Please specify Other Activities funded by CSBG under Agency Capacity:",null,null,null,"A.5.1.oth.  Please specify Other Activities funded by CSBG under Agency Capacity:"]
[null,"*Below please specify Other Activities funded by CSBG under Agency Capacity: Staff meetings, board meetings, trainings, resource development, and evaluation, case management. ",null,null,null,"Staff meetings, board meetings, trainings, resource development, and evaluation, case management."]
[]
[null,"A.6. Details on Use of CSBG CARES Funds",null,null,null,"A.6. Details on Use of CSBG CARES Funds"]
[null,"Please provide details on use of the CSBG CARES funds. Please only include activities not already included elsewhere in the CSBG Annual Report.",null,null,null,"Please provide details on use of the CSBG CARES funds. Please only include activities not already included elsewhere in the CSBG Annual Report."]
[null,"CSBG CARES Act funding provides staff to intensify case management to clients seeking services. Monthly food delivered to individuals who are homebound, and in crisis. Emergency assistance including motel vouchers for homeless individuals, and mental health services for individuals and families in crisis. ",null,null,null,"CSBG CARES Act funding provided staff to intensify case management to clients seeking services. Monthly food delivered to individuals who were homebound. Additional CARES Act funding was received making it challenging to expend a majority of CSBG CARES Act funding."]

{"sheet":"Section B. Local Agency Capacit","index":3,"n_rows":58,"n_cols":5,"rows_kept":58,"cut":false,"hidden":true,"merged":[[55,1,55,2],[37,1,37,2],[39,1,39,2],[1,1,1,2],[14,1,14,2],[18,1,18,2],[38,1,38,2]]}
[]
[null," Module 2, Section B: Local Agency Capacity Building - Data Entry Form"]
[null,{"$f":"\"Name of CSBG Eligible Entity: \" & IF(M2AgencyName<>\"\",M2AgencyName,\" \")","v":"Name of CSBG Eligible Entity: Southeastern Utah Association of Local Governments"},"DUNS"]
[null,{"$f":"\"State Name: \" & IF(M2StateName<>\"\",M2StateName,\" \")","v":"State Name: Utah"},{"$f":"IF(M2DUNS<>\"\",M2DUNS,\" \")","v":"097758627"}]
[null,"^CODED TO PREPOULATE..DO NOT TOUCH "]
[null,"B.1. CSBG Eligibly Entity Reporting Period: "]
[null,"B.1.  CSBG Eligible Entity Reporting Period","\"X\""]
[null,"B.1a. July 1-June 30",null,null,false]
[null,"B.1b. October 1-September 30",null,null,false]
[null,"B.1c. January 1-December 31",null,null,false]
[]
[null,"B.2 Hours of Agency Capacity Building (e.g. training, planning, assessment):","Hours"]
[null,"    B.2a. Hours of Board Members in capacity building activities"]
[null,"    B.2b. Hours of Agency Staff in capacity building activities"]
[]
[null,"B.3. Volunteer Hours of Agency Capacity Building (e.g. program support, service delivery, fundraising):"," Hours"]
[null,"B.3a. Total number of volunteer hours donated to the agency"]
[null,"B.3a.1. Of the above, the total number of volunteer hours donated by individuals with low-incomes"]
[]
[null,"B.4. The number of staff who hold certifications that increase agency capacity to achieve family and community outcomes, as measured by one or more of the following: ","Number"]
[null,"B.4a. Number of Nationally Certified ROMA Trainers"]
[null,"B.4b. Number of Nationally Certified ROMA Implementers"]
[null,"B.4c. Number of Certified Community Action Professionals (CCAP)"]
[null,"B.4d. Number of Staff with a child development certification"]
[null,"B.4e. Number of Staff with a family development certification"]
[null,"B.4f. Number of Pathways Reviewers "]
[null,"B.4g. Number of Staff with Home Energy Professional Certifications"]
[null,"     B.4g.1. Number of Energy Auditors"]
[null,"     B.4g.2. Number of Retrofit Installer Technicians"]
[null,"     B.4g.3. Number of Crew Leaders"]
[null,"     B.4g.4. Number of Quality Control Inspectors (QCI)"]
[null," B.4h. Number of LEED Risk Certified assessors"]
[null," B.4i. Number of Building Performance Institute (BPI) certified professionals"]
[null,"B.4j. Number of Classroom Assessment Scoring System (CLASS) certified professionals"]
[null,"B.4k. Number of Certified Housing Quality Standards (HQS) Inspectors"]
[null,"B.4l. Number of American Institute of Certified Planners (AICP)   "]
[null,"B.4m. Other (Please specify others below):"]
[]
[]
[null,{"$f":"IF(AND(C37<>0,B39=\"\"),\"ERROR: You must specify the Other certifications held by staff members \",\" \")","v":" "}]
[null,"                          "]
[null,"B.5. Number of organizations, both public and private, that the CSBG Eligible Entity actively works with to expand resources and opportunities in order to achieve family and community outcomes:","Unduplicated Number of Organizations"]
[null,"B.5a. Non-Profit"]
[null,"B.5b. Faith Based"]
[null,"B.5c. Local Government"]
[null,"B.5d. State Government"]
[null,"B.5e. Federal Government"]
[null,"B.5f. For-Profit Business or Corporation"]
[null,"B.5g. Consortiums/Collaborations"]
[null,"B.5h. School Districts"]
[null,"B.5i. Institutions of Post-Secondary Education/Training"]
[null,"B.5j. Financial/Banking Institutions"]
[null,"B.5k. Health Service Organizations"]
[null,"B.5l. Statewide Associations or Collaborations"]
[]
[null,{"$f":"IF(AND(D46=1,D54=0),\"At a minimum, the state CSBG office should be a partner organization\",IF(AND(D46=0,D54=1),\"At a minimum, the state Community Action Association should be a partner organization\",IF(AND(D46=1,D54=1),\"At a minimum, the state CSBG office and state Community Action Association should be partner organizations\",\"\")))","v":""}]
[]
[null,"\n"]

{"sheet":"Section C. Local CSBG Resources","index":4,"n_rows":139,"n_cols":21,"rows_kept":139,"cut":false,"hidden":false,"merged":[[12,12,12,20],[6,12,7,20],[104,4,104,6],[78,1,78,9],[99,4,99,6],[100,4,100,6],[101,4,101,6],[102,4,102,6],[103,4,103,6],[96,4,96,6],[97,4,97,6],[98,4,98,6],[79,1,79,9],[95,4,95,6],[12,1,12,9],[0,1,0,9],[4,1,4,6],[1,5,1,9],[1,1,1,4],[2,5,2,7],[2,1,2,4],[133,2,134,7],[122,1,122,9],[111,1,111,9],[108,2,109,7],[119,2,120,7],[121,1,121,9]]}
[null,"Module 2, Section C: Allocated CARES Act Resources per CSBG Eligible Entity"]
[null,"Name of CSBG Eligble Entity:",null,null,null,{"$f":"IF(M2AgencyName<>\"\",M2AgencyName,\" \")","v":"Southeastern Utah Association of Local Governments"}]
[null,"State Name:",null,null,null,{"$f":"IF(M2StateName<>\"\",M2StateName,\" \")","v":"Utah"},null,null,"DUNS:",{"$f":"IF(M2DUNS<>\"\",M2DUNS,\" \")","v":"097758627"}]
[]
[null,"C.1. CSBG Eligible Entity Reporting Period",null,null,null,null,null,null,null,"\"X\""]
[null,"C.1a. July 1 - June 30",null,null,null,null,null,null,null,{"$f":"IF(Period_1,\"X\",\"\")","v":""},true]
[null,"C.1b. October 1 - September 30",null,null,null,null,null,null,null,{"$f":"IF(Period_2,\"X\",\"\")","v":"X"},false,null,"Prior Year Reported"]
[null,"C.1c. January 1 - December 31",null,null,null,null,null,null,null,{"$f":"IF(Period_3,\"X\",\"\")","v":""},false]
[]
[]
[null,"C.2. Amount of FY 2021 CSBG CARES funds allocated to reporting entity",null,null,null,null,null,null,null,30216,null,null,"C.2. Amount of FY 2020 CSBG CARES funds allocated to reporting entity",null,null,null,null,null,null,null,73092]
[]
[null,"C.3. Federal CARES Act Resources Allocated (Other than CSBG)",null,null,null,null,null,null,null,null,null,null,"C.3. Federal CARES Act Resources Allocated (Other than CSBG)"]
[]
[null,"C.3a. Weatherization (DOE) (include oil overcharge $$)",null,null,null,null,null,null,"C.3a.",null,null,null,"C.3a. Weatherization (DOE) (include oil overcharge $$)",null,null,null,null,null,null,"C.3a."]
[null,"C.3b. Health and Human Services (HHS)",null,null,null,null,null,null,null,null,null,null,"C.3b. Health and Human Services (HHS)"]
[null,null,"C.3b.1.",null,"LIHEAP - Fuel Assistance  (include oil overcharge $$)",null,null,null,"C.3b.1.",null,null,null,null,"C.3b.1.",null,"LIHEAP - Fuel Assistance  (include oil overcharge $$)",null,null,null,"C.3b.1."]
[null,null,"C.3b.2.",null,"LIHEAP - Weatherization  (include oil overcharge $$)",null,null,null,"C.3b.2.",null,null,null,null,"C.3b.2.",null,"LIHEAP - Weatherization  (include oil overcharge $$)",null,null,null,"C.3b.2."]
[null,null,"C.3b.3.",null,"Head Start",null,null,null,"C.3b.3.",null,null,null,null,"C.3b.3.",null,"Head Start",null,null,null,"C.3b.3."]
[null,null,"C.3b.4.",null,"Early Head Start",null,null,null,"C.3b.4.",null,null,null,null,"C.3b.4.",null,"Early Head Start",null,null,null,"C.3b.4."]
[null,null,"C.3b.5.",null,"Older Americans Act ",null,null,null,"C.3b.5.",157900,null,null,null,"C.3b.5.",null,"Older Americans Act ",null,null,null,"C.3b.5.",232600]
[null,null,"C.3b.6.",null,"Social Services Block Grant (SSBG)",null,null,null,"C.3b.6.",null,null,null,null,"C.3b.6.",null,"Social Services Block Grant (SSBG)",null,null,null,"C.3b.6."]
[null,null,"C.3b.7.",null,"Medicare/Medicaid ",null,null,null,"C.3b.7.",null,null,null,null,"C.3b.7.",null,"Medicare/Medicaid ",null,null,null,"C.3b.7."]
[null,null,"C.3b.8.",null,"Assets for Independence (AFI)",null,null,null,"C.3b.8.",null,null,null,null,"C.3b.8.",null,"Assets for Independence (AFI)",null,null,null,"C.3b.8."]
[null,null,"C.3b.9.",null,"Temporary Assistance for Needy Families (TANF)",null,null,null,"C.3b.9.",null,null,null,null,"C.3b.9.",null,"Temporary Assistance for Needy Families (TANF)",null,null,null,"C.3b.9."]
[null,null,"C.3b.10.",null,"Child Care Development Block Grant (CCDBG)",null,null,null,"C.3b.10.",null,null,null,null,"C.3b.10.",null,"Child Care Development Block Grant (CCDBG)",null,null,null,"C.3b.10."]
[null,null,"C.3b.11.",null,"Community Economic Development (CED)",null,null,null,"C.3b.11.",null,null,null,null,"C.3b.11.",null,"Community Economic Development (CED)",null,null,null,"C.3b.11."]
[null,null,"C.3b.12.",null,"Other HHS Resource Description",{"$f":"IF(AND(OR(AND(E29<>\"\",H29<>\"\",J29<>\"\"),AND(E29=\"\",H29=\"\",J29=\"\"), AND(E29=\"\",H29=\"\",J29=0)), OR(AND(E30<>\"\",H30<>\"\",J30<>\"\"),AND(E30=\"\",H30=\"\",J30=\"\"), AND(E30=\"\",H30=\"\",J30=0) ), OR(AND(E31<>\"\",H31<>\"\",J31<>\"\"),AND(E31=\"\",H31=\"\",J31=\"\"), AND(E31=\"\",H31=\"\",J31=0)), OR(AND(E32<>\"\",H32<>\"\",J32<>\"\"),AND(E32=\"\",H32=\"\",J32=\"\"), AND(E32=\"\",H32=\"\",J32=0))),\"\",\"ENTER DESCRIPTION, CFDA#, & DOLLAR AMOUNT BELOW\")","v":""},null,null,null,null,null,null,null,"C.3b.12.",null,"Other HHS Resource Description",{"$f":"IF(AND(OR(AND(P29<>\"\",S29<>\"\",U29<>\"\"),AND(P29=\"\",S29=\"\",U29=\"\"), AND(P29=\"\",S29=\"\",U29=0)), OR(AND(P30<>\"\",S30<>\"\",U30<>\"\"),AND(P30=\"\",S30=\"\",U30=\"\"), AND(P30=\"\",S30=\"\",U30=0) ), OR(AND(P31<>\"\",S31<>\"\",U31<>\"\"),AND(P31=\"\",S31=\"\",U31=\"\"), AND(P31=\"\",S31=\"\",U31=0)), OR(AND(P32<>\"\",S32<>\"\",U32<>\"\"),AND(P32=\"\",S32=\"\",U32=\"\"), AND(P32=\"\",S32=\"\",U32=0))),\"\",\"ENTER DESCRIPTION, CFDA#, & DOLLAR AMOUNT BELOW\")","v":""}]
[null,null,null,"C.3b.12.i.",null,null,"CFDA #:",null,"C.3b.12.i.",null,null,null,null,null,"C.3b.12.i.",null,null,"CFDA #:",null,"C.3b.12.i."]
[null,null,null,"C.3b.12.ii.",null,null,"CFDA #:",null,"C.3b.12.ii.",null,null,null,null,null,"C.3b.12.ii.",null,null,"CFDA #:",null,"C.3b.12.ii."]
[null,null,null,"C.3b.12.iii.",null,null,"CFDA #:",null,"C.3b.12.iii.",null,null,null,null,null,"C.3b.12.iii.",null,null,"CFDA #:",null,"C.3b.12.iii."]
[null,null,null,"C.3b.12.iv.",null,null,"CFDA #:",null,"C.3b.12.iv.",null,null,null,null,null,"C.3b.12.iv.",null,null,"CFDA #:",null,"C.3b.12.iv."]
[null,null,null,"C.3b.12.v.",null,null,"CFDA #:",null,"C.3b.12.v.",null,null,null,null,null,"C.3b.12.v.",null,null,"CFDA #:",null,"C.3b.12.v."]
[null,null,null,"C.3b.12.vi.",null,null,"CFDA #:",null,"C.3b.12.vi.",null,null,null,null,null,"C.3b.12.vi.",null,null,"CFDA #:",null,"C.3b.12.vi."]
[null,null,null,"C.3b.12.vii.",null,null,"CFDA #:",null,"C.3b.12.vii.",null,null,null,null,null,"C.3b.12.vii.",null,null,"CFDA #:",null,"C.3b.12.vii."]
[null,null,null,"C.3b.12.viii.",null,null,"CFDA #:",null,"C.3b.12.viii.",null,null,null,null,null,"C.3b.12.viii.",null,null,"CFDA #:",null,"C.3b.12.viii."]
[null,null,null,"C.3b.12.ix.",null,null,"CFDA #:",null,"C.3b.12.ix.",null,null,null,null,null,"C.3b.12.ix.",null,null,"CFDA #:",null,"C.3b.12.ix."]
[null,null,null,"C.3b.12.x.",null,null,"CFDA #:",null,"C.3b.12.x.",null,null,null,null,null,"C.3b.12.x.",null,null,"CFDA #:",null,"C.3b.12.x."]
[]
[null,null,"C.3b.13.",null,"Total Other HHS Resources (autocalculated)",null,null,null,"C.3b.13.",{"$f":"SUM(J29:J38)","v":0},null,null,null,"C.3b.13."," Total Other HHS Resources (autocalculated)",null,null,null,null,"C.3b.13."]
[null,"C.3c. Department of Agriculture (USDA)",null,null,null,null,null,null,null,null,null,null,"C.3c. Department of Agriculture (USDA)"]
[null,null,"C.3c.1.",null,"Special Supplemental Nutrition for Women, Infants, and Children (WIC)",null,null,null,"C.3c.1.",null,null,null,null,"C.3c.1.",null,"Special Supplemental Nutrition for Women, Infants, and Children (WIC)",null,null,null,"C.3c.1."]
[null,null,"C.3c.2.",null,"All USDA Non-Food programs (e.g. rural development)",null,null,null,"C.3c.2.",null,null,null,null,"C.3c.2.",null,"All USDA Non-Food programs (e.g. rural development)",null,null,null,"C.3c.2."]
[null,null,"C.3c.3.",null,"All other USDA Food programs",null,null,null,"C.3c.3.",null,null,null,null,"C.3c.3.",null,"All other USDA Food programs",null,null,null,"C.3c.3.",31196]
[null,"C.3d. Department of Housing and Urban Development (HUD)",null,null,null,null,null,null,null,null,null,null,"C.3d. Department of Housing and Urban Development (HUD)"]
[null,null,"C.3d.1.",null,"Community Development Block Grant (CDBG) - Federal, State, and Local",null,null,null,"C.3d.1.",1542001.75,null,null,null,"C.3d.1.",null,"Community Development Block Grant (CDBG) - Federal, State, and Local",null,null,null,"C.3d.1.",1542380]
[null,null,"C.3d.2.",null,"Section 8",null,null,null,"C.3d.2.",null,null,null,null,"C.3d.2.",null,"Section 8",null,null,null,"C.3d.2."]
[null,null,"C.3d.3.",null,"Section 202",null,null,null,"C.3d.3.",null,null,null,null,"C.3d.3.",null,"Section 202",null,null,null,"C.3d.3."]
[null,null,"C.3d.4.",null,"Home Tenant-Based Rental Assistance (HOME TBRA)",null,null,null,"C.3d.4.",null,null,null,null,"C.3d.4.",null,"Home Tenant-Based Rental Assistance (HOME TBRA)",null,null,null,"C.3d.4."]
[null,null,"C.3d.5.",null,"HOPE for Homeowners Program (H4H)",null,null,null,"C.3d.5.",null,null,null,null,"C.3d.5.",null,"HOPE for Homeowners Program (H4H)",null,null,null,"C.3d.5."]
[null,null,"C.3d.6.",null,"Emergency Solutions Grant (ESG)",null,null,null,"C.3d.6.",274977,null,null,null,"C.3d.6.",null,"Emergency Solutions Grant (ESG)",null,null,null,"C.3d.6.",447225]
[null,null,"C.3d.7.",null,"Continuum of Care (CoC)",null,null,null,"C.3d.7.",null,null,null,null,"C.3d.7.",null,"Continuum of Care (CoC)",null,null,null,"C.3d.7."]
[null,null,"C.3d.8.",null,"All other HUD programs, including homeless programs",null,null,null,"C.3d.8.",null,null,null,null,"C.3d.8.",null,"All other HUD programs, including homeless programs",null,null,null,"C.3d.8."]
[null,"C.3e. Department of Labor (DOL)",null,null,null,null,null,null,null,null,null,null,"C.3e. Department of Labor (DOL)"]
[null,null,"C.3e.1.",null,"Workforce Innovation and Opportunity Act (WIOA) *previously WIA",null,null,null,"C.3e.1.",null,null,null,null,"C.3e.1.",null,"Workforce Innovation and Opportunity Act (WIOA) *previously WIA",null,null,null,"C.3e.1."]
[null,null,"C.3e.2.",null,"Other DOL Employment and Training programs ",null,null,null,"C.3e.2.",null,null,null,null,"C.3e.2.",null,"Other DOL Employment and Training programs ",null,null,null,"C.3e.2."]
[null,null,"C.3e.3.",null,"All other DOL programs",null,null,null,"C.3e.3.",null,null,null,null,"C.3e.3.",null,"All other DOL programs",null,null,null,"C.3e.3."]
[null,"C.3f. Corporation for National and Community Service (CNCS) programs",null,null,null,null,null,null,"C.3f.",null,null,null,"C.3f. Corporation for National and Community Service (CNCS) programs",null,null,null,null,null,null,"C.3f."]
[null,"C.3g. Federal Emergency Management Agency (FEMA)",null,null,null,null,null,null,"C.3g.",null,null,null,"C.3g. Federal Emergency Management Agency (FEMA)",null,null,null,null,null,null,"C.3g."]
[null,"C.3h. Department of Transportation",null,null,null,null,null,null,"C.3h.",null,null,null,"C.3h. Department of Transportation",null,null,null,null,null,null,"C.3h."]
[null,"C.3i. Department of Education",null,null,null,null,null,null,"C.3i.",null,null,null,"C.3i. Department of Education",null,null,null,null,null,null,"C.3i."]
[null,"C.3j. Department of Justice",null,null,null,null,null,null,"C.3j.",null,null,null,"C.3j. Department of Justice",null,null,null,null,null,null,"C.3j."]
[null,"C.3k. Department of Treasury ",null,null,null,null,null,null,"C.3k.",140000,null,null,"C.3k. Department of Treasury ",null,null,null,null,null,null,"C.3k.",181302]
[null,"C.3l. Other Federal Resources",null,null,null,{"$f":"IF(AND(OR(AND(E65<>\"\",H65<>\"\",J65<>\"\"),AND(E65=\"\",H65=\"\",J65=\"\"), AND(E65=\"\",H65=\"\",J65=0)), OR(AND(E66<>\"\",H66<>\"\",J66<>\"\"),AND(E66=\"\",H66=\"\",J66=\"\"), AND(E66=\"\",H66=\"\",J66=0) ), OR(AND(E67<>\"\",H67<>\"\",J67<>\"\"),AND(E67=\"\",H67=\"\",J67=\"\"), AND(E67=\"\",H67=\"\",J67=0)), OR(AND(E68<>\"\",H68<>\"\",J68<>\"\"),AND(E68=\"\",H68=\"\",J68=\"\"), AND(E68=\"\",H68=\"\",J68=0))),\"\",\"ENTER DESCRIPTION, CFDA#, & DOLLAR AMOUNT BELOW\")","v":""},null,null,null,null,null,null,"C.3l. Other Federal Resources",null,null,null,{"$f":"IF(AND(OR(AND(P65<>\"\",S65<>\"\",U65<>\"\"),AND(P65=\"\",S65=\"\",U65=\"\"), AND(P65=\"\",S65=\"\",U65=0)), OR(AND(P66<>\"\",S66<>\"\",U66<>\"\"),AND(P66=\"\",S66=\"\",U66=\"\"), AND(P66=\"\",S66=\"\",U66=0) ), OR(AND(P67<>\"\",S67<>\"\",U67<>\"\"),AND(P67=\"\",S67=\"\",U67=\"\"), AND(P67=\"\",S67=\"\",U67=0)), OR(AND(P68<>\"\",S68<>\"\",U68<>\"\"),AND(P68=\"\",S68=\"\",U68=\"\"), AND(P68=\"\",S68=\"\",U68=0))),\"\",\"ENTER DESCRIPTION, CFDA#, & DOLLAR AMOUNT BELOW\")","v":""}]
[null,null,null,"C.3l.i.","EDA CARES",null,"CFDA #:","11.307","C.3l.i.",296212,null,null,null,null,"C.3l.i.","EDA CARES",null,"CFDA #:","11.307","C.3l.i.",400000]
[null,null,null,"C.3l.ii.",null,null,"CFDA #:",null,"C.3l.ii.",null,null,null,null,null,"C.3l.ii.","RLF CARES",null,"CFDA #:","11.307","C.3l.ii.",660000]
[null,null,null,"C.3l.iii.",null,null,"CFDA #:",null,"C.3l.iii.",null,null,null,null,null,"C.3l.iii.",null,null,"CFDA #:",null,"C.3l.iii."]
[null,null,null,"C.3l.iv.",null,null,"CFDA #:",null,"C.3l.iv.",null,null,null,null,null,"C.3l.iv.",null,null,"CFDA #:",null,"C.3l.iv."]
[null,null,null,"C.3l.v.",null,null,"CFDA #:",null,"C.3l.v.",null,null,null,null,null,"C.3l.v.",null,null,"CFDA #:",null,"C.3l.v."]
[null,null,null,"C.3l.vi.",null,null,"CFDA #:",null,"C.3l.vi.",null,null,null,null,null,"C.3l.vi.",null,null,"CFDA #:",null,"C.3l.vi."]
[null,null,null,"C.3l.vii.",null,null,"CFDA #:",null,"C.3l.vii.",null,null,null,null,null,"C.3l.vii.",null,null,"CFDA #:",null,"C.3l.vii."]
[null,null,null,"C.3l.viii.",null,null,"CFDA #:",null,"C.3l.viii.",null,null,null,null,null,"C.3l.viii.",null,null,"CFDA #:",null,"C.3l.viii."]
[null,null,null,"C.3l.ix.",null,null,"CFDA #:",null,"C.3l.ix.",null,null,null,null,null,"C.3l.ix.",null,null,"CFDA #:",null,"C.3l.ix."]
[null,null,null,"C.3l.x.",null,null,"CFDA #:",null,"C.3l.x.",null,null,null,null,null,"C.3l.x.",null,null,"CFDA #:",null,"C.3l.x."]
[]
[null,"C.3m. Total Other Federal Resources (autocalculated)",null,null,null,null,null,null,"C.3m.",{"$f":"SUM(J65:J74)","v":296212},null,null,"C.3m. Total Other Federal Resources (autocalculated)",null,null,null,null,null,null,"C.3m.",1060000]
[null,"C.3n. Total: Non-CSBG Federal Resources Allocated (autocalculated)",null,null,null,null,null,null,"C.3n.",{"$f":"SUM(J15,J17:J27,J40,J42:J44,J46:J53,J55:J63,J76)","v":2411090.75},null,null,"C.3n. Total: Non-CSBG Federal Resources Allocated (autocalculated)",null,null,null,null,null,null,"C.3n.",3494703]
[]
[]
[null,"C.4.  State Resources Allocated"]
[]
[null,null,"C.4a.",null,"State appropriated funds used for  same purpose as Federal CSBG funds",null,null,null,"C.4a."]
[null,null,"C.4b.",null,"State Housing and Homeless programs (include housing tax credits)",null,null,null,"C.4b."]
[null,null,"C.4c.",null,"State Nutrition programs",null,null,null,"C.4c."]
[null,null,"C.4d.",null,"State Early Childhood Programs (e.g. Head Start, Day Care)",null,null,null,"C.4d."]
[null,null,"C.4e.",null,"State Energy programs",null,null,null,"C.4e."]
[null,null,"C.4f.",null,"State Health programs",null,null,null,"C.4f."]
[null,null,"C.4g.",null,"State Youth Development programs",null,null,null,"C.4g."]
[null,null,"C.4h.",null,"State Employment and Training programs",null,null,null,"C.4h."]
[null,null,"C.4i.",null,"State Senior programs",null,null,null,"C.4i."]
[null,null,"C.4j.",null,"State Transportation programs",null,null,null,"C.4j."]
[null,null,"C.4k.",null,"State Education programs",null,null,null,"C.4k."]
[null,null,"C.4l.",null,"State Community, Rural and Economic Development programs",null,null,null,"C.4l."]
[null,null,"C.4m.",null,"State Family Development programs",null,null,null,"C.4m."]
[null,null,"C.4n.",null,"Other State Resources",null,{"$f":"IF(AND(OR(AND(E96<>\"\",J96<>\"\"), AND(E96=\"\",J96=\"\"), AND(E96=\"\", J96=0)), OR(AND(E97<>\"\",J97<>\"\"), AND(E97=\"\",J97=\"\"), AND(E97=\"\", J97=0)), OR(AND(E98<>\"\",J98<>\"\"), AND(E98=\"\",J98=\"\"), AND(E98=\"\", J98=0) ), OR(AND(E99<>\"\",J99<>\"\"), AND(E99=\"\",J99=\"\"), AND(E99=\"\", J99=0))),\"\",\"ENTER DESCRIPTION & DOLLAR AMOUNT BELOW\")","v":""}]
[null,null,null,"C.4n.i.",null,null,null,null,"C.4n.i."]
[null,null,null,"C.4n.ii.",null,null,null,null,"C.4n.ii."]
[null,null,null,"C.4n.iii.",null,null,null,null,"C.4n.iii."]
[null,null,null,"C.4n.iv.",null,null,null,null,"C.4n.iv."]
[null,null,null,"C.4n.v.",null,null,null,null,"C.4n.v."]
[null,null,null,"C.4n.vi.",null,null,null,null,"C.4n.vi."]
[null,null,null,"C.4n.vii.",null,null,null,null,"C.4n.vii."]
[null,null,null,"C.4n.viii.",null,null,null,null,"C.4n.viii."]
[null,null,null,"C.4n.ix.",null,null,null,null,"C.4n.ix."]
[null,null,null,"C.4n.x.",null,null,null,null,"C.4n.x."]
[null,null,null,"C.4o. Total Other State Resources (autocalculated)",null,null,null,null,"C.4o.",{"$f":"SUM(J96:J105)","v":0}]
[]
[null,"C.4p. Total: State Resources Allocated (autocalculated)",null,null,null,null,null,null,"C.4p.",{"$f":"SUM(J82:J94,J106)","v":0}]
[null,"C.4q.","If any of these resources were also reported under Item C.3n. (Federal Resources), please estimate the amount.",null,null,null,null,null,"C.4q."]
[]
[]
[null,"C.5. Local Resources Allocated"]
[null,null,"C.5a.",null,"Amount of unrestricted funds appropriated by local government",null,null,null,"C.5a."]
[null,null,"C.5b.",null,"Amount of restricted funds appropriated by local government",null,null,null,"C.5b."]
[null,null,"C.5c.",null,"Value of Contract Services",null,null,null,"C.5c."]
[null,null,"C.5d.",null,"Value of in-kind goods/services received from local government",null,null,null,"C.5d."]
[]
[null,"C.5e. Total: Local Resources Allocated (autocalculated)",null,null,null,null,null,null,"C.5e.",{"$f":"SUM(J113:J116)","v":0}]
[]
[null,"C.5f.","If any of these resources were also reported under Item C.3n. or C.4p. (Federal or State Resources), please estimate the amount.",null,null,null,null,null,"C.5f."]
[]
[]
[null,"C.6. Private Sector Resources Allocated"]
[null,null,"C.6a.",null,"Funds from foundations, corporations, United Way, other nonprofits",null,null,null,"C.6a."]
[null,null,"C.6b.",null,"Other donated funds",null,null,null,"C.6b."]
[null,null,"C.6c.",null,"Value of other donated items, food, clothing, furniture, etc.",null,null,null,"C.6c."]
[null,null,"C.6d.",null,"Value of in-kind services received from businesses",null,null,null,"C.6d."]
[null,null,"C.6e.",null,"Payments by clients for services",null,null,null,"C.6e."]
[null,null,"C.6f.",null,"Payments by private entities for goods or services for low income ",null,null,null,"C.6f."]
[null,null,null,null,"clients or communities"]
[]
[null,"C.6g. Total: Private Sector Resources Allocated (autocalculated)",null,null,null,null,null,null,"C.6g.",{"$f":"SUM(J124:J128,J129)","v":0}]
[]
[null,"C.6h.","If any of these resources were also reported under Item C.3n., C.4p. or C.5e. (Federal, State or Local Resources), please estimate the amount.",null,null,null,null,null,"C.6h."]
[]
[]
[null,"C.7. Total Non-CSBG Resources Allocated: (Federal, State, Local & Private)*",null,null,null,null,null,null,"C.7.",{"$f":"SUM(J15,J17:J27,J40,J42:J44,J46:J53,J55:J63,J76)+J108+J118+J132 - (J109+J120+J134)","v":2411090.75},null,null,"C.7. Total Non-CSBG Resources Allocated: (Federal, State, Local & Private)*",null,null,null,null,null,null,"C.7.",3494703]
[null,"C.8. Total Resources in CSBG Eligible Entity (including CSBG)*",null,null,null,null,null,null,"C.8.",{"$f":"SUM(J15,J17:J27,J40,J42:J44,J46:J53,J55:J63,J76)+J108+J118+J132 - (J109+J120+J134) + J11","v":2441306.75},null,null,"C.8. Total Resources in CSBG Eligible Entity (including CSBG)*",null,null,null,null,null,null,"C.8.",3567795]
[null,"Note : * All totals are autocalculated "]

{"sheet":"Identification","index":5,"n_rows":12,"n_cols":4,"rows_kept":12,"cut":false,"hidden":true,"merged":[]}
[null,null,"Version:","M2_C-2020.1"]
[]
[null,null,"State:",{"$f":"M2StateName","v":"Utah"}]
[null,null,"Name of CSBG Eligible Entity Reporting:",{"$f":"M2AgencyName","v":"Southeastern Utah Association of Local Governments"}]
[null,null,"DUNS Number:",{"$f":"M2DUNS","v":"097758627"}]
[null,null,"Organization:"]
[null,null,"Program Acronym:"]
[null,null,"Lead Agency:","UTAH"]
[null,null,"Grant Number:"]
[]
[null,null,"Report Period Start Date:",{"$f":"IF(Period_1,\"07-01-2019\",IF(Period_2,\"10-01-2019\",\"01-01-2020\"))","v":"10-01-2019"}]
[null,null,"Report Period End Date:",{"$f":"IF(Period_1,\"06-30-2020\",IF(Period_2,\"09-30-2020\",\"12-31-2020\"))","v":"09-30-2020"}]

{"sheet":"XML Export Map","index":6,"n_rows":223,"n_cols":10,"rows_kept":223,"cut":false,"hidden":true,"merged":[]}
[]
["Question/Reference","Smartform Range Name","Address","Value","Type","XML Export Name for DB","Max Length",null,{"$f":"FIND(\"]\",J2)","v":97},{"$f":"CELL(\"address\",INDIRECT(B4))","v":"'[FY21_UT_CARES_M2_Southeastern_Utah_Association_of_Local_Governments_097758627 Updated (7).xlsm]Identification'!$D$8"}]
[]
["leadAgency","M2LeadAgency",{"$f":"\"'='\" & MID(CELL(\"address\",INDIRECT(B4)),$I$2+1,100)","v":"'='Identification'!$D$8"},{"$f":"M2LeadAgency","v":"UTAH"},"Text","GRANTEENAME",100]
["State Name","M2StateName",{"$f":"\"'='\" & MID(CELL(\"address\",INDIRECT(B5)),$I$2+1,100)","v":"'='Section A. Local CSBG Expen'!$B$5"},{"$f":"M2StateName","v":"Utah"},"Text"]
["Agency Name","M2AgencyName",{"$f":"\"'='\" & MID(CELL(\"address\",INDIRECT(B6)),$I$2+1,100)","v":"'='Section A. Local CSBG Expen'!$B$3"},null,"Text","ELIGIBLEENTITY"]
["orgAbbrev","M2OrgAbbrev",{"$f":"\"'='\" & MID(CELL(\"address\",INDIRECT(B7)),$I$2+1,100)","v":"'='Identification'!$D$6"},"ACF","Text","orgAbbrev"]
["programAcronym","M2ProgramAcronym",{"$f":"\"'='\" & MID(CELL(\"address\",INDIRECT(B8)),$I$2+1,100)","v":"'='Identification'!$D$7"},"CSC3","Text","programAcronym"]
["DUNS Number","M2Duns",{"$f":"\"'='\" & MID(CELL(\"address\",INDIRECT(B9)),$I$2+1,100)","v":"'='Section A. Local CSBG Expen'!$C$5"},{"$f":"M2DUNS","v":"097758627"},"Text","duns"]
["reportPeriodStartDate","M2ReportPeriodStartDate",{"$f":"\"'='\" & MID(CELL(\"address\",INDIRECT(B10)),$I$2+1,100)","v":"'='Identification'!$D$11"},"2019-10-01","Date","reportPeriodStartDate"]
["reportPeriodEndDate","M2ReportPeriodEndDate",{"$f":"\"'='\" & MID(CELL(\"address\",INDIRECT(B11)),$I$2+1,100)","v":"'='Identification'!$D$12"},"2020-09-30","Date","reportPeriodEndDate"]
["grantNumber","M2GrantNumber",{"$f":"\"'='\" & MID(CELL(\"address\",INDIRECT(B12)),$I$2+1,100)","v":"'='Identification'!$D$9"},null,"Text","grantNumber"]
["subGrantee",null,null,true,"True/False","subGrantee"]
["A1_Period","A1_Period",{"$f":"\"'='\" & MID(CELL(\"address\",INDIRECT(B14)),$I$2+1,100)","v":"'='Lookups'!$C$15"},{"$f":"IF(Lookups!$C$15=\"\",\"\",Lookups!$C$15)","v":1},"Number","M2A1"]
["A1_Period","Period_1",{"$f":"\"'='\" & MID(CELL(\"address\",INDIRECT(B15)),$I$2+1,100)","v":"'='Lookups'!$C$16"},{"$f":"IF(Lookups!$C$16=\"\",0,Lookups!$C$16)","v":false},"True/False","M2A1aJulyToJune"]
["A1_Period","Period_2",{"$f":"\"'='\" & MID(CELL(\"address\",INDIRECT(B16)),$I$2+1,100)","v":"'='Lookups'!$C$17"},{"$f":"IF(Lookups!$C$17=\"\",0,Lookups!$C$17)","v":true},"True/False","M2A1bOctToSept"]
["A1_Period","Period_3",{"$f":"\"'='\" & MID(CELL(\"address\",INDIRECT(B17)),$I$2+1,100)","v":"'='Lookups'!$C$18"},{"$f":"IF(Lookups!$C$18=\"\",0,Lookups!$C$18)","v":false},"True/False","M2A1cJanToDec"]
["A2_CARES_Amount","M2A2CARESAmount",{"$f":"\"'='\" & MID(CELL(\"address\",INDIRECT(B18)),$I$2+1,100)","v":"'='Section A. Local CSBG Expen'!$C$12"},{"$f":" IF(ISBLANK(M2A2CARESAmount),\"\",M2A2CARESAmount)","v":170401},"Number","M2A2CARESAmount"]
["A2a_Employment","M2A2aEmployment",{"$f":"\"'='\" & MID(CELL(\"address\",INDIRECT(B19)),$I$2+1,100)","v":"'='Section A. Local CSBG Expen'!$C$15"},{"$f":" IF(ISBLANK(M2A2aEmployment),\"\",M2A2aEmployment)","v":12249},"Number","M2A2aEmployment"]
["A2b_Education","M2A2bEducation",{"$f":"\"'='\" & MID(CELL(\"address\",INDIRECT(B20)),$I$2+1,100)","v":"'='Section A. Local CSBG Expen'!$C$16"},{"$f":" IF(ISBLANK(M2A2bEducation),\"\",M2A2bEducation)","v":""},"Number","M2A2bEducation"]
["A2c_Income","M2A2cIncome",{"$f":"\"'='\" & MID(CELL(\"address\",INDIRECT(B21)),$I$2+1,100)","v":"'='Section A. Local CSBG Expen'!$C$17"},{"$f":" IF(ISBLANK(M2A2cIncome),\"\",M2A2cIncome)","v":2378},"Number","M2A2cIncome"]
["A2d_Housing","M2A2dHousing",{"$f":"\"'='\" & MID(CELL(\"address\",INDIRECT(B22)),$I$2+1,100)","v":"'='Section A. Local CSBG Expen'!$C$18"},{"$f":" IF(ISBLANK(M2A2dHousing),\"\",M2A2dHousing)","v":2789},"Number","M2A2dHousing"]
["A2e_Health","M2A2eHealth",{"$f":"\"'='\" & MID(CELL(\"address\",INDIRECT(B23)),$I$2+1,100)","v":"'='Section A. Local CSBG Expen'!$C$19"},{"$f":" IF(ISBLANK(M2A2eHealth),\"\",M2A2eHealth)","v":14481},"Number","M2A2eHealth"]
["A2f_Civic","M2A2fCivic",{"$f":"\"'='\" & MID(CELL(\"address\",INDIRECT(B24)),$I$2+1,100)","v":"'='Section A. Local CSBG Expen'!$C$20"},{"$f":" IF(ISBLANK(M2A2fCivic),\"\",M2A2fCivic)","v":""},"Number","M2A2fCivic"]
["A2g_Services","M2A2gServices",{"$f":"\"'='\" & MID(CELL(\"address\",INDIRECT(B25)),$I$2+1,100)","v":"'='Section A. Local CSBG Expen'!$C$21"},{"$f":" IF(ISBLANK(M2A2gServices),\"\",M2A2gServices)","v":""},"Number","M2A2gServices"]
["A2h_Linkages","M2A2hLinkages",{"$f":"\"'='\" & MID(CELL(\"address\",INDIRECT(B26)),$I$2+1,100)","v":"'='Section A. Local CSBG Expen'!$C$22"},{"$f":" IF(ISBLANK(M2A2hLinkages),\"\",M2A2hLinkages)","v":1244},"Number","M2A2hLinkages"]
["A2i_Capacity","M2A2iCapacity",{"$f":"\"'='\" & MID(CELL(\"address\",INDIRECT(B27)),$I$2+1,100)","v":"'='Section A. Local CSBG Expen'!$C$23"},{"$f":" IF(ISBLANK(M2A2iCapacity),\"\",M2A2iCapacity)","v":3799},"Number","M2A2iCapacity"]
["A2j_Other","M2A2jOther",{"$f":"\"'='\" & MID(CELL(\"address\",INDIRECT(B28)),$I$2+1,100)","v":"'='Section A. Local CSBG Expen'!$C$24"},{"$f":" IF(ISBLANK(M2A2jOther),\"\",M2A2jOther)","v":""},"Number","M2A2jOther"]
["A2k_Total","M2A2kTotal",{"$f":"\"'='\" & MID(CELL(\"address\",INDIRECT(B29)),$I$2+1,100)","v":"'='Section A. Local CSBG Expen'!$C$25"},{"$f":" IF(ISBLANK(M2A2kTotal),\"\",M2A2kTotal)","v":36940},"Number","M2A2kTotal"]
["A3_Admin","M2A3Admin",{"$f":"\"'='\" & MID(CELL(\"address\",INDIRECT(B30)),$I$2+1,100)","v":"'='Section A. Local CSBG Expen'!$C$27"},{"$f":" IF(ISBLANK(M2A3Admin),\"\",M2A3Admin)","v":3277},"Number","M2A3Admin"]
["A41_Activities","A41_Activities",{"$f":"\"'='\" & MID(CELL(\"address\",INDIRECT(B31)),$I$2+1,100)","v":"'='Lookups'!$C$20"},{"$f":" IF(ISBLANK(A41_Activities),\"\",A41_Activities)","v":3},"Number",""]
["A41_Activities","M2A41CommunityNeeds",{"$f":"\"'='\" & MID(CELL(\"address\",INDIRECT(B32)),$I$2+1,100)","v":"'='Lookups'!$C$22"},{"$f":"IF(Lookups!C22=\"\",\"\",Lookups!C22)","v":false},"True/False","M2A41CommunityNeeds"]
["A41_Activities","M2A41DataManagement",{"$f":"\"'='\" & MID(CELL(\"address\",INDIRECT(B33)),$I$2+1,100)","v":"'='Lookups'!$C$23"},{"$f":"IF(Lookups!C23=\"\",\"\",Lookups!C23)","v":true},"True/False","M2A41DataManagement"]
["A41_Other","M2A41Other",{"$f":"\"'='\" & MID(CELL(\"address\",INDIRECT(B34)),$I$2+1,100)","v":"'='Lookups'!$C$24"},{"$f":"IF(Lookups!$C$24=\"\",\"\",Lookups!$C$24)","v":true},"True/False","M2A41Other"]
["A41_Activities","M2A41StrategicPlanning",{"$f":"\"'='\" & MID(CELL(\"address\",INDIRECT(B35)),$I$2+1,100)","v":"'='Lookups'!$C$25"},{"$f":"IF(Lookups!$C$25=\"\",\"\",Lookups!$C$25)","v":false},"True/False","M2A41StrategicPlanning"]
["A41_OtherText","M2A41OtherText",{"$f":"\"'='\" & MID(CELL(\"address\",INDIRECT(B36)),$I$2+1,100)","v":"'='Section A. Local CSBG Expen'!$B$36"},{"$f":" IF(ISBLANK(M2A41OtherText),\"\",M2A41OtherText)","v":"*Below please specify Other Activities funded by CSBG under Agency Capacity: Staff meetings, board meetings, trainings, resource development, and evaluation, case management. "},"Text","M2A41OtherText"]
["A41_Activities","M2A41Training",{"$f":"\"'='\" & MID(CELL(\"address\",INDIRECT(B37)),$I$2+1,100)","v":"'='Lookups'!$C$26"},{"$f":"IF(Lookups!$C$26=\"\",\"\",Lookups!$C$26)","v":true},"True/False","M2A41Training"]
["A5_Details","M2A5Details",{"$f":"\"'='\" & MID(CELL(\"address\",INDIRECT(B38)),$I$2+1,100)","v":"'='Section A. Local CSBG Expen'!$B$40"},{"$f":" IF(ISBLANK(M2A5Details),\"\",M2A5Details)","v":"CSBG CARES Act funding provides staff to intensify case management to clients seeking services. Monthly food delivered to individuals who are homebound, and in crisis. Emergency assistance including motel vouchers for homeless individuals, and mental health services for individuals and families in crisis. "},"Memo","M2A5Details",5000]
["A_Comments","M2AComments",{"$f":"\"'='\" & MID(CELL(\"address\",INDIRECT(B39)),$I$2+1,100)","v":"'='Section A. Local CSBG Expen'!$B$37"},{"$f":" IF(ISBLANK(M2AComments),\"\",M2AComments)","v":""},"Memo","M2AComments",5000]
["B2a_Board","M2B2aBoard",{"$f":"\"'='\" & MID(CELL(\"address\",INDIRECT(B40)),$I$2+1,100)","v":"'='Section B. Local Agency Capacit'!$C$13"},{"$f":" IF(ISBLANK(M2B2aBoard),\"\",M2B2aBoard)","v":""},"Number","M2B2aBoard"]
["B2b_Agency","M2B2bAgency",{"$f":"\"'='\" & MID(CELL(\"address\",INDIRECT(B41)),$I$2+1,100)","v":"'='Section B. Local Agency Capacit'!$C$14"},{"$f":" IF(ISBLANK(M2B2bAgency),\"\",M2B2bAgency)","v":""},"Number","M2B2bAgency"]
["B3a_VolHoursDonated","M2B3aVolHoursDonated",{"$f":"\"'='\" & MID(CELL(\"address\",INDIRECT(B42)),$I$2+1,100)","v":"'='Section B. Local Agency Capacit'!$C$17"},{"$f":" IF(ISBLANK(M2B3aVolHoursDonated),\"\",M2B3aVolHoursDonated)","v":""},"Number","M2B3aVolHoursDonated"]
["B3a1_HoursLI","M2B3a1HoursLI",{"$f":"\"'='\" & MID(CELL(\"address\",INDIRECT(B43)),$I$2+1,100)","v":"'='Section B. Local Agency Capacit'!$C$18"},{"$f":" IF(ISBLANK(M2B3a1HoursLI),\"\",M2B3a1HoursLI)","v":""},"Number","M2B3a1HoursLI"]
["B4a_ROMATrainers","M2B4aROMATrainers",{"$f":"\"'='\" & MID(CELL(\"address\",INDIRECT(B44)),$I$2+1,100)","v":"'='Section B. Local Agency Capacit'!$C$21"},{"$f":" IF(ISBLANK(M2B4aROMATrainers),\"\",M2B4aROMATrainers)","v":""},"Number","M2B4aROMATrainers"]
["B4b_ROMAImplementers","M2B4bROMAImplementers",{"$f":"\"'='\" & MID(CELL(\"address\",INDIRECT(B45)),$I$2+1,100)","v":"'='Section B. Local Agency Capacit'!$C$22"},{"$f":" IF(ISBLANK(M2B4bROMAImplementers),\"\",M2B4bROMAImplementers)","v":""},"Number","M2B4bROMAImplementers"]
["B4c_CCAP","M2B4cCCAP",{"$f":"\"'='\" & MID(CELL(\"address\",INDIRECT(B46)),$I$2+1,100)","v":"'='Section B. Local Agency Capacit'!$C$23"},{"$f":" IF(ISBLANK(M2B4cCCAP),\"\",M2B4cCCAP)","v":""},"Number","M2B4cCCAP"]
["B4d_Child","M2B4dChild",{"$f":"\"'='\" & MID(CELL(\"address\",INDIRECT(B47)),$I$2+1,100)","v":"'='Section B. Local Agency Capacit'!$C$24"},{"$f":" IF(ISBLANK(M2B4dChild),\"\",M2B4dChild)","v":""},"Number","M2B4dChild"]
["B4e_Family","M2B4eFamily",{"$f":"\"'='\" & MID(CELL(\"address\",INDIRECT(B48)),$I$2+1,100)","v":"'='Section B. Local Agency Capacit'!$C$25"},{"$f":" IF(ISBLANK(M2B4eFamily),\"\",M2B4eFamily)","v":""},"Number","M2B4eFamily"]
["B4f_Pathways","M2B4fPathways",{"$f":"\"'='\" & MID(CELL(\"address\",INDIRECT(B49)),$I$2+1,100)","v":"'='Section B. Local Agency Capacit'!$C$26"},{"$f":" IF(ISBLANK(M2B4fPathways),\"\",M2B4fPathways)","v":""},"Number","M2B4fPathways"]
["B4g_Home","M2B4gHome",{"$f":"\"'='\" & MID(CELL(\"address\",INDIRECT(B50)),$I$2+1,100)","v":"'='Section B. Local Agency Capacit'!$C$27"},{"$f":" IF(ISBLANK(M2B4gHome),\"\",M2B4gHome)","v":""},"Number","M2B4gHome"]
["B4g1_Auditors","M2B4g1Auditors",{"$f":"\"'='\" & MID(CELL(\"address\",INDIRECT(B51)),$I$2+1,100)","v":"'='Section B. Local Agency Capacit'!$C$28"},{"$f":" IF(ISBLANK(M2B4g1Auditors),\"\",M2B4g1Auditors)","v":""},"Number","M2B4g1Auditors"]
["B4g2_Retrofit","M2B4g2Retrofit",{"$f":"\"'='\" & MID(CELL(\"address\",INDIRECT(B52)),$I$2+1,100)","v":"'='Section B. Local Agency Capacit'!$C$29"},{"$f":" IF(ISBLANK(M2B4g2Retrofit),\"\",M2B4g2Retrofit)","v":""},"Number","M2B4g2Retrofit"]
["B4g3_Crew","M2B4g3Crew",{"$f":"\"'='\" & MID(CELL(\"address\",INDIRECT(B53)),$I$2+1,100)","v":"'='Section B. Local Agency Capacit'!$C$30"},{"$f":" IF(ISBLANK(M2B4g3Crew),\"\",M2B4g3Crew)","v":""},"Number","M2B4g3Crew"]
["B4g4_QCI","M2B4g4QCI",{"$f":"\"'='\" & MID(CELL(\"address\",INDIRECT(B54)),$I$2+1,100)","v":"'='Section B. Local Agency Capacit'!$C$31"},{"$f":" IF(ISBLANK(M2B4g4QCI),\"\",M2B4g4QCI)","v":""},"Number","M2B4g4QCI"]
["B4h_LEED","M2B4hLEED",{"$f":"\"'='\" & MID(CELL(\"address\",INDIRECT(B55)),$I$2+1,100)","v":"'='Section B. Local Agency Capacit'!$C$32"},{"$f":" IF(ISBLANK(M2B4hLEED),\"\",M2B4hLEED)","v":""},"Number","M2B4hLEED"]
["B4i_BPI","M2B4iBPI",{"$f":"\"'='\" & MID(CELL(\"address\",INDIRECT(B56)),$I$2+1,100)","v":"'='Section B. Local Agency Capacit'!$C$33"},{"$f":" IF(ISBLANK(M2B4iBPI),\"\",M2B4iBPI)","v":""},"Number","M2B4iBPI"]
["B4j_CLASS","M2B4jCLASS",{"$f":"\"'='\" & MID(CELL(\"address\",INDIRECT(B57)),$I$2+1,100)","v":"'='Section B. Local Agency Capacit'!$C$34"},{"$f":" IF(ISBLANK(M2B4jCLASS),\"\",M2B4jCLASS)","v":""},"Number","M2B4jCLASS"]
["B4k_HQS","M2B4kHQS",{"$f":"\"'='\" & MID(CELL(\"address\",INDIRECT(B58)),$I$2+1,100)","v":"'='Section B. Local Agency Capacit'!$C$35"},{"$f":" IF(ISBLANK(M2B4kHQS),\"\",M2B4kHQS)","v":""},"Number","M2B4kHQS"]
["B4l_AICP","M2B4lAICP",{"$f":"\"'='\" & MID(CELL(\"address\",INDIRECT(B59)),$I$2+1,100)","v":"'='Section B. Local Agency Capacit'!$C$36"},{"$f":" IF(ISBLANK(M2B4lAICP),\"\",M2B4lAICP)","v":""},"Number","M2B4lAICP"]
["B4m_Other","M2B4mOther",{"$f":"\"'='\" & MID(CELL(\"address\",INDIRECT(B60)),$I$2+1,100)","v":"'='Section B. Local Agency Capacit'!$C$37"},{"$f":" IF(ISBLANK(M2B4mOther),\"\",M2B4mOther)","v":""},"Number","M2B4mOther"]
["B4m_Specify","M2B4mSpecify",{"$f":"\"'='\" & MID(CELL(\"address\",INDIRECT(B61)),$I$2+1,100)","v":"'='Section B. Local Agency Capacit'!$B$39"},{"$f":" IF(ISBLANK(M2B4mSpecify),\"\",M2B4mSpecify)","v":""},"Text","M2B4mSpecify"]
["B5a_NonProfit","M2B5aNonProfit",{"$f":"\"'='\" & MID(CELL(\"address\",INDIRECT(B62)),$I$2+1,100)","v":"'='Section B. Local Agency Capacit'!$C$43"},{"$f":" IF(ISBLANK(M2B5aNonProfit),\"\",M2B5aNonProfit)","v":""},"Number","M2B5aNonProfit"]
["B5b_Faith","M2B5bFaith",{"$f":"\"'='\" & MID(CELL(\"address\",INDIRECT(B63)),$I$2+1,100)","v":"'='Section B. Local Agency Capacit'!$C$44"},{"$f":" IF(ISBLANK(M2B5bFaith),\"\",M2B5bFaith)","v":""},"Number","M2B5bFaith"]
["B5c_Local","M2B5cLocal",{"$f":"\"'='\" & MID(CELL(\"address\",INDIRECT(B64)),$I$2+1,100)","v":"'='Section B. Local Agency Capacit'!$C$45"},{"$f":" IF(ISBLANK(M2B5cLocal),\"\",M2B5cLocal)","v":""},"Number","M2B5cLocal"]
["B5d_State","M2B5dState",{"$f":"\"'='\" & MID(CELL(\"address\",INDIRECT(B65)),$I$2+1,100)","v":"'='Section B. Local Agency Capacit'!$C$46"},{"$f":" IF(ISBLANK(M2B5dState),\"\",M2B5dState)","v":""},"Number","M2B5dState"]
["B5e_Federal","M2B5eFederal",{"$f":"\"'='\" & MID(CELL(\"address\",INDIRECT(B66)),$I$2+1,100)","v":"'='Section B. Local Agency Capacit'!$C$47"},{"$f":" IF(ISBLANK(M2B5eFederal),\"\",M2B5eFederal)","v":""},"Number","M2B5eFederal"]
["B5f_ForProfit","M2B5fForProfit",{"$f":"\"'='\" & MID(CELL(\"address\",INDIRECT(B67)),$I$2+1,100)","v":"'='Section B. Local Agency Capacit'!$C$48"},{"$f":" IF(ISBLANK(M2B5fForProfit),\"\",M2B5fForProfit)","v":""},"Number","M2B5fForProfit"]
["B5g_Consortiums","M2B5gConsortiums",{"$f":"\"'='\" & MID(CELL(\"address\",INDIRECT(B68)),$I$2+1,100)","v":"'='Section B. Local Agency Capacit'!$C$49"},{"$f":" IF(ISBLANK(M2B5gConsortiums),\"\",M2B5gConsortiums)","v":""},"Number","M2B5gConsortiums"]
["B5h_Schools","M2B5hSchools",{"$f":"\"'='\" & MID(CELL(\"address\",INDIRECT(B69)),$I$2+1,100)","v":"'='Section B. Local Agency Capacit'!$C$50"},{"$f":" IF(ISBLANK(M2B5hSchools),\"\",M2B5hSchools)","v":""},"Number","M2B5hSchools"]
["B5i_PostSecondary","M2B5iPostSecondary",{"$f":"\"'='\" & MID(CELL(\"address\",INDIRECT(B70)),$I$2+1,100)","v":"'='Section B. Local Agency Capacit'!$C$51"},{"$f":" IF(ISBLANK(M2B5iPostSecondary),\"\",M2B5iPostSecondary)","v":""},"Number","M2B5iPostSecondary"]
["B5j_Banks","M2B5jBanks",{"$f":"\"'='\" & MID(CELL(\"address\",INDIRECT(B71)),$I$2+1,100)","v":"'='Section B. Local Agency Capacit'!$C$52"},{"$f":" IF(ISBLANK(M2B5jBanks),\"\",M2B5jBanks)","v":""},"Number","M2B5jBanks"]
["B5k_Health","M2B5kHealth",{"$f":"\"'='\" & MID(CELL(\"address\",INDIRECT(B72)),$I$2+1,100)","v":"'='Section B. Local Agency Capacit'!$C$53"},{"$f":" IF(ISBLANK(M2B5kHealth),\"\",M2B5kHealth)","v":""},"Number","M2B5kHealth"]
["B5l_Statewide","M2B5lStatewide",{"$f":"\"'='\" & MID(CELL(\"address\",INDIRECT(B73)),$I$2+1,100)","v":"'='Section B. Local Agency Capacit'!$C$54"},{"$f":" IF(ISBLANK(M2B5lStatewide),\"\",M2B5lStatewide)","v":""},"Number","M2B5lStatewide"]
["B_Comments","M2BComments",{"$f":"\"'='\" & MID(CELL(\"address\",INDIRECT(B74)),$I$2+1,100)","v":"'='Section B. Local Agency Capacit'!$B$58"},{"$f":" IF(ISBLANK(M2BComments),\"\",M2BComments)","v":"\n"},"Memo","M2BComments",5000]
["C.2","M2C2AmtAllocated",{"$f":"\"'='\" & MID(CELL(\"address\",INDIRECT(B75)),$I$2+1,100)","v":"'='Section C. Local CSBG Resources'!$J$11"},{"$f":" IF(ISBLANK(M2C2AmtAllocated),\"\",M2C2AmtAllocated)","v":30216},"Number","M2C2AmtAllocated"]
["C.3a","M2C3aDOEWx",{"$f":"\"'='\" & MID(CELL(\"address\",INDIRECT(B76)),$I$2+1,100)","v":"'='Section C. Local CSBG Resources'!$J$15"},{"$f":" IF(ISBLANK(M2C3aDOEWx),\"\",M2C3aDOEWx)","v":""},"Number","M2C3aDOEWx"]
["C.3b.1","M2C3b1LIHEAPAssist",{"$f":"\"'='\" & MID(CELL(\"address\",INDIRECT(B77)),$I$2+1,100)","v":"'='Section C. Local CSBG Resources'!$J$17"},{"$f":" IF(ISBLANK(M2C3b1LIHEAPAssist),\"\",M2C3b1LIHEAPAssist)","v":""},"Number","M2C3b1LIHEAPAssist"]
["C.3b.2","M2C3b2LIHEAPWx",{"$f":"\"'='\" & MID(CELL(\"address\",INDIRECT(B78)),$I$2+1,100)","v":"'='Section C. Local CSBG Resources'!$J$18"},{"$f":" IF(ISBLANK(M2C3b2LIHEAPWx),\"\",M2C3b2LIHEAPWx)","v":""},"Number","M2C3b2LIHEAPWx"]
["C.3b.3","M2C3b3HeadStart",{"$f":"\"'='\" & MID(CELL(\"address\",INDIRECT(B79)),$I$2+1,100)","v":"'='Section C. Local CSBG Resources'!$J$19"},{"$f":" IF(ISBLANK(M2C3b3HeadStart),\"\",M2C3b3HeadStart)","v":""},"Number","M2C3b3HeadStart"]
["C.3b.4","M2C3b4EarlyHeadStart",{"$f":"\"'='\" & MID(CELL(\"address\",INDIRECT(B80)),$I$2+1,100)","v":"'='Section C. Local CSBG Resources'!$J$20"},{"$f":" IF(ISBLANK(M2C3b4EarlyHeadStart),\"\",M2C3b4EarlyHeadStart)","v":""},"Number","M2C3b4EarlyHeadStart"]
["C.3b.5","M2C3b5OlderAmericans",{"$f":"\"'='\" & MID(CELL(\"address\",INDIRECT(B81)),$I$2+1,100)","v":"'='Section C. Local CSBG Resources'!$J$21"},{"$f":" IF(ISBLANK(M2C3b5OlderAmericans),\"\",M2C3b5OlderAmericans)","v":157900},"Number","M2C3b5OlderAmericans"]
["C.3b.6","M2C3b6SSBG",{"$f":"\"'='\" & MID(CELL(\"address\",INDIRECT(B82)),$I$2+1,100)","v":"'='Section C. Local CSBG Resources'!$J$22"},{"$f":" IF(ISBLANK(M2C3b6SSBG),\"\",M2C3b6SSBG)","v":""},"Number","M2C3b6SSBG"]
["C.3b.7","M2C3b7MedicareMedicaid",{"$f":"\"'='\" & MID(CELL(\"address\",INDIRECT(B83)),$I$2+1,100)","v":"'='Section C. Local CSBG Resources'!$J$23"},{"$f":" IF(ISBLANK(M2C3b7MedicareMedicaid),\"\",M2C3b7MedicareMedicaid)","v":""},"Number","M2C3b7MedicareMedicaid"]
["C.3b.8","M2C3b8AFI",{"$f":"\"'='\" & MID(CELL(\"address\",INDIRECT(B84)),$I$2+1,100)","v":"'='Section C. Local CSBG Resources'!$J$24"},{"$f":" IF(ISBLANK(M2C3b8AFI),\"\",M2C3b8AFI)","v":""},"Number","M2C3b8AFI"]
["C.3b.9","M2C3b9TANF",{"$f":"\"'='\" & MID(CELL(\"address\",INDIRECT(B85)),$I$2+1,100)","v":"'='Section C. Local CSBG Resources'!$J$25"},{"$f":" IF(ISBLANK(M2C3b9TANF),\"\",M2C3b9TANF)","v":""},"Number","M2C3b9TANF"]
["C.3b.10","M2C3b10CCDBG",{"$f":"\"'='\" & MID(CELL(\"address\",INDIRECT(B86)),$I$2+1,100)","v":"'='Section C. Local CSBG Resources'!$J$26"},{"$f":" IF(ISBLANK(M2C3b10CCDBG),\"\",M2C3b10CCDBG)","v":""},"Number","M2C3b10CCDBG"]
["C.3b.11","M2C3b11CED",{"$f":"\"'='\" & MID(CELL(\"address\",INDIRECT(B87)),$I$2+1,100)","v":"'='Section C. Local CSBG Resources'!$J$27"},{"$f":" IF(ISBLANK(M2C3b11CED),\"\",M2C3b11CED)","v":""},"Number","M2C3b11CED"]
["C.3b.12.i.oth","M2C3b12iOtherHHSName",{"$f":"\"'='\" & MID(CELL(\"address\",INDIRECT(B88)),$I$2+1,100)","v":"'='Section C. Local CSBG Resources'!$E$29"},{"$f":" IF(ISBLANK(M2C3b12iOtherHHSName),\"\",M2C3b12iOtherHHSName)","v":""},"Text","M2C3b12iOtherHHSName"]
["C.3b.12.i.CFDA","M2C3b12iOtherHHSCFDA",{"$f":"\"'='\" & MID(CELL(\"address\",INDIRECT(B89)),$I$2+1,100)","v":"'='Section C. Local CSBG Resources'!$H$29"},{"$f":" IF(ISBLANK(M2C3b12iOtherHHSCFDA),\"\",M2C3b12iOtherHHSCFDA)","v":""},"Text","M2C3b12iOtherHHSCFDA"]
["C.3b.12.i","M2C3b12iOtherHHSDollar",{"$f":"\"'='\" & MID(CELL(\"address\",INDIRECT(B90)),$I$2+1,100)","v":"'='Section C. Local CSBG Resources'!$J$29"},{"$f":" IF(ISBLANK(M2C3b12iOtherHHSDollar),\"\",M2C3b12iOtherHHSDollar)","v":""},"Number","M2C3b12iOtherHHSDollar"]
["C.3b.12.ii.oth","M2C3b12iiOtherHHSName",{"$f":"\"'='\" & MID(CELL(\"address\",INDIRECT(B91)),$I$2+1,100)","v":"'='Section C. Local CSBG Resources'!$E$30"},{"$f":" IF(ISBLANK(M2C3b12iiOtherHHSName),\"\",M2C3b12iiOtherHHSName)","v":""},"Text","M2C3b12iiOtherHHSName"]
["C.3b.12.ii.CFDA","M2C3b12iiOtherHHSCFDA",{"$f":"\"'='\" & MID(CELL(\"address\",INDIRECT(B92)),$I$2+1,100)","v":"'='Section C. Local CSBG Resources'!$H$30"},{"$f":" IF(ISBLANK(M2C3b12iiOtherHHSCFDA),\"\",M2C3b12iiOtherHHSCFDA)","v":""},"Text","M2C3b12iiOtherHHSCFDA"]
["C.3b.12.ii","M2C3b12iiOtherHHSDollar",{"$f":"\"'='\" & MID(CELL(\"address\",INDIRECT(B93)),$I$2+1,100)","v":"'='Section C. Local CSBG Resources'!$J$30"},{"$f":" IF(ISBLANK(M2C3b12iiOtherHHSDollar),\"\",M2C3b12iiOtherHHSDollar)","v":""},"Number","M2C3b12iiOtherHHSDollar"]
["C.3b.12.iii.oth","M2C3b12iiiOtherHHSName",{"$f":"\"'='\" & MID(CELL(\"address\",INDIRECT(B94)),$I$2+1,100)","v":"'='Section C. Local CSBG Resources'!$E$31"},{"$f":" IF(ISBLANK(M2C3b12iiiOtherHHSName),\"\",M2C3b12iiiOtherHHSName)","v":""},"Text","M2C3b12iiiOtherHHSName"]
["C.3b.12.iii.CFDA","M2C3b12iiiOtherHHSCFDA",{"$f":"\"'='\" & MID(CELL(\"address\",INDIRECT(B95)),$I$2+1,100)","v":"'='Section C. Local CSBG Resources'!$H$31"},{"$f":" IF(ISBLANK(M2C3b12iiiOtherHHSCFDA),\"\",M2C3b12iiiOtherHHSCFDA)","v":""},"Text","M2C3b12iiiOtherHHSCFDA"]
["C.3b.12.iii","M2C3b12iiiOtherHHSDollar",{"$f":"\"'='\" & MID(CELL(\"address\",INDIRECT(B96)),$I$2+1,100)","v":"'='Section C. Local CSBG Resources'!$J$31"},{"$f":" IF(ISBLANK(M2C3b12iiiOtherHHSDollar),\"\",M2C3b12iiiOtherHHSDollar)","v":""},"Number","M2C3b12iiiOtherHHSDollar"]
["C.3b.12.iv.oth","M2C3b12ivOtherHHSName",{"$f":"\"'='\" & MID(CELL(\"address\",INDIRECT(B97)),$I$2+1,100)","v":"'='Section C. Local CSBG Resources'!$E$32"},{"$f":" IF(ISBLANK(M2C3b12ivOtherHHSName),\"\",M2C3b12ivOtherHHSName)","v":""},"Text","M2C3b12ivOtherHHSName"]
["C.3b.12.iv.CFDA","M2C3b12ivOtherHHSCFDA",{"$f":"\"'='\" & MID(CELL(\"address\",INDIRECT(B98)),$I$2+1,100)","v":"'='Section C. Local CSBG Resources'!$H$32"},{"$f":" IF(ISBLANK(M2C3b12ivOtherHHSCFDA),\"\",M2C3b12ivOtherHHSCFDA)","v":""},"Text","M2C3b12ivOtherHHSCFDA"]
["C.3b.12.iv","M2C3b12ivOtherHHSDollar",{"$f":"\"'='\" & MID(CELL(\"address\",INDIRECT(B99)),$I$2+1,100)","v":"'='Section C. Local CSBG Resources'!$J$32"},{"$f":" IF(ISBLANK(M2C3b12ivOtherHHSDollar),\"\",M2C3b12ivOtherHHSDollar)","v":""},"Number","M2C3b12ivOtherHHSDollar"]
["C.3b.12.v.oth","M2C3b12vOtherHHSName",{"$f":"\"'='\" & MID(CELL(\"address\",INDIRECT(B100)),$I$2+1,100)","v":"'='Section C. Local CSBG Resources'!$E$33"},{"$f":" IF(ISBLANK(M2C3b12vOtherHHSName),\"\",M2C3b12vOtherHHSName)","v":""},"Text","M2C3b12vOtherHHSName"]
["C.3b.12.v.CFDA","M2C3b12vOtherHHSCFDA",{"$f":"\"'='\" & MID(CELL(\"address\",INDIRECT(B101)),$I$2+1,100)","v":"'='Section C. Local CSBG Resources'!$H$33"},{"$f":" IF(ISBLANK(M2C3b12vOtherHHSCFDA),\"\",M2C3b12vOtherHHSCFDA)","v":""},"Text","M2C3b12vOtherHHSCFDA"]
["C.3b.12.v","M2C3b12vOtherHHSDollar",{"$f":"\"'='\" & MID(CELL(\"address\",INDIRECT(B102)),$I$2+1,100)","v":"'='Section C. Local CSBG Resources'!$J$33"},{"$f":" IF(ISBLANK(M2C3b12vOtherHHSDollar),\"\",M2C3b12vOtherHHSDollar)","v":""},"Number","M2C3b12vOtherHHSDollar"]
["C.3b.12.vi.oth","M2C3b12viOtherHHSName",{"$f":"\"'='\" & MID(CELL(\"address\",INDIRECT(B103)),$I$2+1,100)","v":"'='Section C. Local CSBG Resources'!$E$34"},{"$f":" IF(ISBLANK(M2C3b12viOtherHHSName),\"\",M2C3b12viOtherHHSName)","v":""},"Text","M2C3b12viOtherHHSName"]
["C.3b.12.vi.CFDA","M2C3b12viOtherHHSCFDA",{"$f":"\"'='\" & MID(CELL(\"address\",INDIRECT(B104)),$I$2+1,100)","v":"'='Section C. Local CSBG Resources'!$H$34"},{"$f":" IF(ISBLANK(M2C3b12viOtherHHSCFDA),\"\",M2C3b12viOtherHHSCFDA)","v":""},"Text","M2C3b12viOtherHHSCFDA"]
["C.3b.12.vi","M2C3b12viOtherHHSDollar",{"$f":"\"'='\" & MID(CELL(\"address\",INDIRECT(B105)),$I$2+1,100)","v":"'='Section C. Local CSBG Resources'!$J$34"},{"$f":" IF(ISBLANK(M2C3b12viOtherHHSDollar),\"\",M2C3b12viOtherHHSDollar)","v":""},"Number","M2C3b12viOtherHHSDollar"]
["C.3b.12.vii.oth","M2C3b12viiOtherHHSName",{"$f":"\"'='\" & MID(CELL(\"address\",INDIRECT(B106)),$I$2+1,100)","v":"'='Section C. Local CSBG Resources'!$E$35"},{"$f":" IF(ISBLANK(M2C3b12viiOtherHHSName),\"\",M2C3b12viiOtherHHSName)","v":""},"Text","M2C3b12viiOtherHHSName"]
["C.3b.12.vii.CFDA","M2C3b12viiOtherHHSCFDA",{"$f":"\"'='\" & MID(CELL(\"address\",INDIRECT(B107)),$I$2+1,100)","v":"'='Section C. Local CSBG Resources'!$H$35"},{"$f":" IF(ISBLANK(M2C3b12viiOtherHHSCFDA),\"\",M2C3b12viiOtherHHSCFDA)","v":""},"Text","M2C3b12viiOtherHHSCFDA"]
["C.3b.12.vii","M2C3b12viiOtherHHSDollar",{"$f":"\"'='\" & MID(CELL(\"address\",INDIRECT(B108)),$I$2+1,100)","v":"'='Section C. Local CSBG Resources'!$J$35"},{"$f":" IF(ISBLANK(M2C3b12viiOtherHHSDollar),\"\",M2C3b12viiOtherHHSDollar)","v":""},"Number","M2C3b12viiOtherHHSDollar"]
["C.3b.12.viii.oth","M2C3b12viiiOtherHHSName",{"$f":"\"'='\" & MID(CELL(\"address\",INDIRECT(B109)),$I$2+1,100)","v":"'='Section C. Local CSBG Resources'!$E$36"},{"$f":" IF(ISBLANK(M2C3b12viiiOtherHHSName),\"\",M2C3b12viiiOtherHHSName)","v":""},"Text","M2C3b12viiiOtherHHSName"]
["C.3b.12.viii.CFDA","M2C3b12viiiOtherHHSCFDA",{"$f":"\"'='\" & MID(CELL(\"address\",INDIRECT(B110)),$I$2+1,100)","v":"'='Section C. Local CSBG Resources'!$H$36"},{"$f":" IF(ISBLANK(M2C3b12viiiOtherHHSCFDA),\"\",M2C3b12viiiOtherHHSCFDA)","v":""},"Text","M2C3b12viiiOtherHHSCFDA"]
["C.3b.12.viii","M2C3b12viiiOtherHHSDollar",{"$f":"\"'='\" & MID(CELL(\"address\",INDIRECT(B111)),$I$2+1,100)","v":"'='Section C. Local CSBG Resources'!$J$36"},{"$f":" IF(ISBLANK(M2C3b12viiiOtherHHSDollar),\"\",M2C3b12viiiOtherHHSDollar)","v":""},"Number","M2C3b12viiiOtherHHSDollar"]
["C.3b.12.ix.oth","M2C3b12ixOtherHHSName",{"$f":"\"'='\" & MID(CELL(\"address\",INDIRECT(B112)),$I$2+1,100)","v":"'='Section C. Local CSBG Resources'!$E$37"},{"$f":" IF(ISBLANK(M2C3b12ixOtherHHSName),\"\",M2C3b12ixOtherHHSName)","v":""},"Text","M2C3b12ixOtherHHSName"]
["C.3b.12.ix.CFDA","M2C3b12ixOtherHHSCFDA",{"$f":"\"'='\" & MID(CELL(\"address\",INDIRECT(B113)),$I$2+1,100)","v":"'='Section C. Local CSBG Resources'!$H$37"},{"$f":" IF(ISBLANK(M2C3b12ixOtherHHSCFDA),\"\",M2C3b12ixOtherHHSCFDA)","v":""},"Text","M2C3b12ixOtherHHSCFDA"]
["C.3b.12.ix","M2C3b12ixOtherHHSDollar",{"$f":"\"'='\" & MID(CELL(\"address\",INDIRECT(B114)),$I$2+1,100)","v":"'='Section C. Local CSBG Resources'!$J$37"},{"$f":" IF(ISBLANK(M2C3b12ixOtherHHSDollar),\"\",M2C3b12ixOtherHHSDollar)","v":""},"Number","M2C3b12ixOtherHHSDollar"]
["C.3b.12.x.oth","M2C3b12xOtherHHSName",{"$f":"\"'='\" & MID(CELL(\"address\",INDIRECT(B115)),$I$2+1,100)","v":"'='Section C. Local CSBG Resources'!$E$38"},{"$f":" IF(ISBLANK(M2C3b12xOtherHHSName),\"\",M2C3b12xOtherHHSName)","v":""},"Text","M2C3b12xOtherHHSName"]
["C.3b.12.x.CFDA","M2C3b12xOtherHHSCFDA",{"$f":"\"'='\" & MID(CELL(\"address\",INDIRECT(B116)),$I$2+1,100)","v":"'='Section C. Local CSBG Resources'!$H$38"},{"$f":" IF(ISBLANK(M2C3b12xOtherHHSCFDA),\"\",M2C3b12xOtherHHSCFDA)","v":""},"Text","M2C3b12xOtherHHSCFDA"]
["C.3b.12.x","M2C3b12xOtherHHSDollar",{"$f":"\"'='\" & MID(CELL(\"address\",INDIRECT(B117)),$I$2+1,100)","v":"'='Section C. Local CSBG Resources'!$J$38"},{"$f":" IF(ISBLANK(M2C3b12xOtherHHSDollar),\"\",M2C3b12xOtherHHSDollar)","v":""},"Number","M2C3b12xOtherHHSDollar"]
["C.3b.13","M2C3b13TotalHHS",{"$f":"\"'='\" & MID(CELL(\"address\",INDIRECT(B118)),$I$2+1,100)","v":"'='Section C. Local CSBG Resources'!$J$40"},{"$f":" IF(ISBLANK(M2C3b13TotalHHS),\"\",M2C3b13TotalHHS)","v":0},"Number","M2C3b13TotalHHS"]
["C.3c.1","M2C3c1WIC",{"$f":"\"'='\" & MID(CELL(\"address\",INDIRECT(B119)),$I$2+1,100)","v":"'='Section C. Local CSBG Resources'!$J$42"},{"$f":" IF(ISBLANK(M2C3c1WIC),\"\",M2C3c1WIC)","v":""},"Number","M2C3c1WIC"]
["C.3c.2","M2C3c2USDANonFood",{"$f":"\"'='\" & MID(CELL(\"address\",INDIRECT(B120)),$I$2+1,100)","v":"'='Section C. Local CSBG Resources'!$J$43"},{"$f":" IF(ISBLANK(M2C3c2USDANonFood),\"\",M2C3c2USDANonFood)","v":""},"Number","M2C3c2USDANonFood"]
["C.3c.3","M2C3c3USDAFood",{"$f":"\"'='\" & MID(CELL(\"address\",INDIRECT(B121)),$I$2+1,100)","v":"'='Section C. Local CSBG Resources'!$J$44"},{"$f":" IF(ISBLANK(M2C3c3USDAFood),\"\",M2C3c3USDAFood)","v":""},"Number","M2C3c3USDAFood"]
["C.3d.1","M2C3d1CDBG",{"$f":"\"'='\" & MID(CELL(\"address\",INDIRECT(B122)),$I$2+1,100)","v":"'='Section C. Local CSBG Resources'!$J$46"},{"$f":" IF(ISBLANK(M2C3d1CDBG),\"\",M2C3d1CDBG)","v":1542001.75},"Number","M2C3d1CDBG"]
["C.3d.2","M2C3d2Sect8",{"$f":"\"'='\" & MID(CELL(\"address\",INDIRECT(B123)),$I$2+1,100)","v":"'='Section C. Local CSBG Resources'!$J$47"},{"$f":" IF(ISBLANK(M2C3d2Sect8),\"\",M2C3d2Sect8)","v":""},"Number","M2C3d2Sect8"]
["C.3d.3","M2C3d3Sect202",{"$f":"\"'='\" & MID(CELL(\"address\",INDIRECT(B124)),$I$2+1,100)","v":"'='Section C. Local CSBG Resources'!$J$48"},{"$f":" IF(ISBLANK(M2C3d3Sect202),\"\",M2C3d3Sect202)","v":""},"Number","M2C3d3Sect202"]
["C.3d.4","M2C3d4HOMETBRA",{"$f":"\"'='\" & MID(CELL(\"address\",INDIRECT(B125)),$I$2+1,100)","v":"'='Section C. Local CSBG Resources'!$J$49"},{"$f":" IF(ISBLANK(M2C3d4HOMETBRA),\"\",M2C3d4HOMETBRA)","v":""},"Number","M2C3d4HOMETBRA"]
["C.3d.5","M2C3d5H4H",{"$f":"\"'='\" & MID(CELL(\"address\",INDIRECT(B126)),$I$2+1,100)","v":"'='Section C. Local CSBG Resources'!$J$50"},{"$f":" IF(ISBLANK(M2C3d5H4H),\"\",M2C3d5H4H)","v":""},"Number","M2C3d5H4H"]
["C.3d.6","M2C3d6ESG",{"$f":"\"'='\" & MID(CELL(\"address\",INDIRECT(B127)),$I$2+1,100)","v":"'='Section C. Local CSBG Resources'!$J$51"},{"$f":" IF(ISBLANK(M2C3d6ESG),\"\",M2C3d6ESG)","v":274977},"Number","M2C3d6ESG"]
["C.3d.7","M2C3d7ContinuumCare",{"$f":"\"'='\" & MID(CELL(\"address\",INDIRECT(B128)),$I$2+1,100)","v":"'='Section C. Local CSBG Resources'!$J$52"},{"$f":" IF(ISBLANK(M2C3d7ContinuumCare),\"\",M2C3d7ContinuumCare)","v":""},"Number","M2C3d7ContinuumCare"]
["C.3d.8","M2C3d8TotalHUD",{"$f":"\"'='\" & MID(CELL(\"address\",INDIRECT(B129)),$I$2+1,100)","v":"'='Section C. Local CSBG Resources'!$J$53"},{"$f":" IF(ISBLANK(M2C3d8TotalHUD),\"\",M2C3d8TotalHUD)","v":""},"Number","M2C3d8TotalHUD"]
["C.3e.1","M2C3eWIOA",{"$f":"\"'='\" & MID(CELL(\"address\",INDIRECT(B130)),$I$2+1,100)","v":"'='Section C. Local CSBG Resources'!$J$55"},{"$f":" IF(ISBLANK(M2C3eWIOA),\"\",M2C3eWIOA)","v":""},"Number","M2C3eWIOA"]
["C.3e.2","M2C3eEmploymentTraining",{"$f":"\"'='\" & MID(CELL(\"address\",INDIRECT(B131)),$I$2+1,100)","v":"'='Section C. Local CSBG Resources'!$J$56"},{"$f":" IF(ISBLANK(M2C3eEmploymentTraining),\"\",M2C3eEmploymentTraining)","v":""},"Number","M2C3eEmploymentTraining"]
["C.3e.3","M2C3eTotalDOL",{"$f":"\"'='\" & MID(CELL(\"address\",INDIRECT(B132)),$I$2+1,100)","v":"'='Section C. Local CSBG Resources'!$J$57"},{"$f":" IF(ISBLANK(M2C3eTotalDOL),\"\",M2C3eTotalDOL)","v":""},"Number","M2C3eTotalDOL"]
["C.3f","M2C3fCNCS",{"$f":"\"'='\" & MID(CELL(\"address\",INDIRECT(B133)),$I$2+1,100)","v":"'='Section C. Local CSBG Resources'!$J$58"},{"$f":" IF(ISBLANK(M2C3fCNCS),\"\",M2C3fCNCS)","v":""},"Number","M2C3fCNCS"]
["C.3g","M2C3gFEMA",{"$f":"\"'='\" & MID(CELL(\"address\",INDIRECT(B134)),$I$2+1,100)","v":"'='Section C. Local CSBG Resources'!$J$59"},{"$f":" IF(ISBLANK(M2C3gFEMA),\"\",M2C3gFEMA)","v":""},"Number","M2C3gFEMA"]
["C.3h","M2C3hTransportation",{"$f":"\"'='\" & MID(CELL(\"address\",INDIRECT(B135)),$I$2+1,100)","v":"'='Section C. Local CSBG Resources'!$J$60"},{"$f":" IF(ISBLANK(M2C3hTransportation),\"\",M2C3hTransportation)","v":""},"Number","M2C3hTransportation"]
["C.3i","M2C3iEducation",{"$f":"\"'='\" & MID(CELL(\"address\",INDIRECT(B136)),$I$2+1,100)","v":"'='Section C. Local CSBG Resources'!$J$61"},{"$f":" IF(ISBLANK(M2C3iEducation),\"\",M2C3iEducation)","v":""},"Number","M2C3iEducation"]
["C.3j","M2C3jJustice",{"$f":"\"'='\" & MID(CELL(\"address\",INDIRECT(B137)),$I$2+1,100)","v":"'='Section C. Local CSBG Resources'!$J$62"},{"$f":" IF(ISBLANK(M2C3jJustice),\"\",M2C3jJustice)","v":""},"Number","M2C3jJustice"]
["C.3k","M2C3kTreasury",{"$f":"\"'='\" & MID(CELL(\"address\",INDIRECT(B138)),$I$2+1,100)","v":"'='Section C. Local CSBG Resources'!$J$63"},{"$f":" IF(ISBLANK(M2C3kTreasury),\"\",M2C3kTreasury)","v":140000},"Number","M2C3kTreasury"]
["C.3l.i.oth","M2C3liOtherFedName",{"$f":"\"'='\" & MID(CELL(\"address\",INDIRECT(B139)),$I$2+1,100)","v":"'='Section C. Local CSBG Resources'!$E$65"},{"$f":" IF(ISBLANK(M2C3liOtherFedName),\"\",M2C3liOtherFedName)","v":"EDA CARES"},"Text","M2C3liOtherFedName"]
["C.3l.i.CFDA","M2C3liOtherFedCFDA",{"$f":"\"'='\" & MID(CELL(\"address\",INDIRECT(B140)),$I$2+1,100)","v":"'='Section C. Local CSBG Resources'!$H$65"},{"$f":" IF(ISBLANK(M2C3liOtherFedCFDA),\"\",M2C3liOtherFedCFDA)","v":"11.307"},"Text","M2C3liOtherFedCFDA"]
["C.3l.i","M2C3liOtherFedDollar",{"$f":"\"'='\" & MID(CELL(\"address\",INDIRECT(B141)),$I$2+1,100)","v":"'='Section C. Local CSBG Resources'!$J$65"},{"$f":" IF(ISBLANK(M2C3liOtherFedDollar),\"\",M2C3liOtherFedDollar)","v":296212},"Number","M2C3liOtherFedDollar"]
["C.3l.ii.oth","M2C3liiOtherFedName",{"$f":"\"'='\" & MID(CELL(\"address\",INDIRECT(B142)),$I$2+1,100)","v":"'='Section C. Local CSBG Resources'!$E$66"},{"$f":" IF(ISBLANK(M2C3liiOtherFedName),\"\",M2C3liiOtherFedName)","v":""},"Text","M2C3liiOtherFedName"]
["C.3l.ii.CFDA","M2C3liiOtherFedCFDA",{"$f":"\"'='\" & MID(CELL(\"address\",INDIRECT(B143)),$I$2+1,100)","v":"'='Section C. Local CSBG Resources'!$H$66"},{"$f":" IF(ISBLANK(M2C3liiOtherFedCFDA),\"\",M2C3liiOtherFedCFDA)","v":""},"Text","M2C3liiOtherFedCFDA"]
["C.3l.ii","M2C3liiOtherFedDollar",{"$f":"\"'='\" & MID(CELL(\"address\",INDIRECT(B144)),$I$2+1,100)","v":"'='Section C. Local CSBG Resources'!$J$66"},{"$f":" IF(ISBLANK(M2C3liiOtherFedDollar),\"\",M2C3liiOtherFedDollar)","v":""},"Number","M2C3liiOtherFedDollar"]
["C.3l.iii.oth","M2C3liiiOtherFedName",{"$f":"\"'='\" & MID(CELL(\"address\",INDIRECT(B145)),$I$2+1,100)","v":"'='Section C. Local CSBG Resources'!$E$67"},{"$f":" IF(ISBLANK(M2C3liiiOtherFedName),\"\",M2C3liiiOtherFedName)","v":""},"Text","M2C3liiiOtherFedName"]
["C.3l.iii.CFDA","M2C3liiiOtherFedCFDA",{"$f":"\"'='\" & MID(CELL(\"address\",INDIRECT(B146)),$I$2+1,100)","v":"'='Section C. Local CSBG Resources'!$H$67"},{"$f":" IF(ISBLANK(M2C3liiiOtherFedCFDA),\"\",M2C3liiiOtherFedCFDA)","v":""},"Text","M2C3liiiOtherFedCFDA"]
["C.3l.iii","M2C3liiiOtherFedDollar",{"$f":"\"'='\" & MID(CELL(\"address\",INDIRECT(B147)),$I$2+1,100)","v":"'='Section C. Local CSBG Resources'!$J$67"},{"$f":" IF(ISBLANK(M2C3liiiOtherFedDollar),\"\",M2C3liiiOtherFedDollar)","v":""},"Number","M2C3liiiOtherFedDollar"]
["C.3l.iv.oth","M2C3livOtherFedName",{"$f":"\"'='\" & MID(CELL(\"address\",INDIRECT(B148)),$I$2+1,100)","v":"'='Section C. Local CSBG Resources'!$E$68"},{"$f":" IF(ISBLANK(M2C3livOtherFedName),\"\",M2C3livOtherFedName)","v":""},"Text","M2C3livOtherFedName"]
["C.3l.iv.CFDA","M2C3livOtherFedCFDA",{"$f":"\"'='\" & MID(CELL(\"address\",INDIRECT(B149)),$I$2+1,100)","v":"'='Section C. Local CSBG Resources'!$H$68"},{"$f":" IF(ISBLANK(M2C3livOtherFedCFDA),\"\",M2C3livOtherFedCFDA)","v":""},"Text","M2C3livOtherFedCFDA"]
["C.3l.iv","M2C3livOtherFedDollar",{"$f":"\"'='\" & MID(CELL(\"address\",INDIRECT(B150)),$I$2+1,100)","v":"'='Section C. Local CSBG Resources'!$J$68"},{"$f":" IF(ISBLANK(M2C3livOtherFedDollar),\"\",M2C3livOtherFedDollar)","v":""},"Number","M2C3livOtherFedDollar"]
["C.3l.v.oth","M2C3lvOtherFedName",{"$f":"\"'='\" & MID(CELL(\"address\",INDIRECT(B151)),$I$2+1,100)","v":"'='Section C. Local CSBG Resources'!$E$69"},{"$f":" IF(ISBLANK(M2C3lvOtherFedName),\"\",M2C3lvOtherFedName)","v":""},"Text","M2C3lvOtherFedName"]
["C.3l.v.CFDA","M2C3lvOtherFedCFDA",{"$f":"\"'='\" & MID(CELL(\"address\",INDIRECT(B152)),$I$2+1,100)","v":"'='Section C. Local CSBG Resources'!$H$69"},{"$f":" IF(ISBLANK(M2C3lvOtherFedCFDA),\"\",M2C3lvOtherFedCFDA)","v":""},"Text","M2C3lvOtherFedCFDA"]
["C.3l.v","M2C3lvOtherFedDollar",{"$f":"\"'='\" & MID(CELL(\"address\",INDIRECT(B153)),$I$2+1,100)","v":"'='Section C. Local CSBG Resources'!$J$69"},{"$f":" IF(ISBLANK(M2C3lvOtherFedDollar),\"\",M2C3lvOtherFedDollar)","v":""},"Number","M2C3lvOtherFedDollar"]
["C.3l.vi.oth","M2C3lviOtherFedName",{"$f":"\"'='\" & MID(CELL(\"address\",INDIRECT(B154)),$I$2+1,100)","v":"'='Section C. Local CSBG Resources'!$E$70"},{"$f":" IF(ISBLANK(M2C3lviOtherFedName),\"\",M2C3lviOtherFedName)","v":""},"Text","M2C3lviOtherFedName"]
["C.3l.vi.CFDA","M2C3lviOtherFedCFDA",{"$f":"\"'='\" & MID(CELL(\"address\",INDIRECT(B155)),$I$2+1,100)","v":"'='Section C. Local CSBG Resources'!$H$70"},{"$f":" IF(ISBLANK(M2C3lviOtherFedCFDA),\"\",M2C3lviOtherFedCFDA)","v":""},"Text","M2C3lviOtherFedCFDA"]
["C.3l.vi","M2C3lviOtherFedDollar",{"$f":"\"'='\" & MID(CELL(\"address\",INDIRECT(B156)),$I$2+1,100)","v":"'='Section C. Local CSBG Resources'!$J$70"},{"$f":" IF(ISBLANK(M2C3lviOtherFedDollar),\"\",M2C3lviOtherFedDollar)","v":""},"Number","M2C3lviOtherFedDollar"]
["C.3l.vii.oth","M2C3lviiOtherFedName",{"$f":"\"'='\" & MID(CELL(\"address\",INDIRECT(B157)),$I$2+1,100)","v":"'='Section C. Local CSBG Resources'!$E$71"},{"$f":" IF(ISBLANK(M2C3lviiOtherFedName),\"\",M2C3lviiOtherFedName)","v":""},"Text","M2C3lviiOtherFedName"]
["C.3l.vii.CFDA","M2C3lviiOtherFedCFDA",{"$f":"\"'='\" & MID(CELL(\"address\",INDIRECT(B158)),$I$2+1,100)","v":"'='Section C. Local CSBG Resources'!$H$71"},{"$f":" IF(ISBLANK(M2C3lviiOtherFedCFDA),\"\",M2C3lviiOtherFedCFDA)","v":""},"Text","M2C3lviiOtherFedCFDA"]
["C.3l.vii","M2C3lviiOtherFedDollar",{"$f":"\"'='\" & MID(CELL(\"address\",INDIRECT(B159)),$I$2+1,100)","v":"'='Section C. Local CSBG Resources'!$J$71"},{"$f":" IF(ISBLANK(M2C3lviiOtherFedDollar),\"\",M2C3lviiOtherFedDollar)","v":""},"Number","M2C3lviiOtherFedDollar"]
["C.3l.viii.oth","M2C3lviiiOtherFedName",{"$f":"\"'='\" & MID(CELL(\"address\",INDIRECT(B160)),$I$2+1,100)","v":"'='Section C. Local CSBG Resources'!$E$72"},{"$f":" IF(ISBLANK(M2C3lviiiOtherFedName),\"\",M2C3lviiiOtherFedName)","v":""},"Text","M2C3lviiiOtherFedName"]
["C.3l.viii.CFDA","M2C3lviiiOtherFedCFDA",{"$f":"\"'='\" & MID(CELL(\"address\",INDIRECT(B161)),$I$2+1,100)","v":"'='Section C. Local CSBG Resources'!$H$72"},{"$f":" IF(ISBLANK(M2C3lviiiOtherFedCFDA),\"\",M2C3lviiiOtherFedCFDA)","v":""},"Text","M2C3lviiiOtherFedCFDA"]
["C.3l.viii","M2C3lviiiOtherFedDollar",{"$f":"\"'='\" & MID(CELL(\"address\",INDIRECT(B162)),$I$2+1,100)","v":"'='Section C. Local CSBG Resources'!$J$72"},{"$f":" IF(ISBLANK(M2C3lviiiOtherFedDollar),\"\",M2C3lviiiOtherFedDollar)","v":""},"Number","M2C3lviiiOtherFedDollar"]
["C.3l.ix.oth","M2C3lixOtherFedName",{"$f":"\"'='\" & MID(CELL(\"address\",INDIRECT(B163)),$I$2+1,100)","v":"'='Section C. Local CSBG Resources'!$E$73"},{"$f":" IF(ISBLANK(M2C3lixOtherFedName),\"\",M2C3lixOtherFedName)","v":""},"Text","M2C3lixOtherFedName"]
["C.3l.ix.CFDA","M2C3lixOtherFedCFDA",{"$f":"\"'='\" & MID(CELL(\"address\",INDIRECT(B164)),$I$2+1,100)","v":"'='Section C. Local CSBG Resources'!$H$73"},{"$f":" IF(ISBLANK(M2C3lixOtherFedCFDA),\"\",M2C3lixOtherFedCFDA)","v":""},"Text","M2C3lixOtherFedCFDA"]
["C.3l.ix","M2C3lixOtherFedDollar",{"$f":"\"'='\" & MID(CELL(\"address\",INDIRECT(B165)),$I$2+1,100)","v":"'='Section C. Local CSBG Resources'!$J$73"},{"$f":" IF(ISBLANK(M2C3lixOtherFedDollar),\"\",M2C3lixOtherFedDollar)","v":""},"Number","M2C3lixOtherFedDollar"]
["C.3l.x.oth","M2C3lxOtherFedName",{"$f":"\"'='\" & MID(CELL(\"address\",INDIRECT(B166)),$I$2+1,100)","v":"'='Section C. Local CSBG Resources'!$E$74"},{"$f":" IF(ISBLANK(M2C3lxOtherFedName),\"\",M2C3lxOtherFedName)","v":""},"Text","M2C3lxOtherFedName"]
["C.3l.x.CFDA","M2C3lxOtherFedCFDA",{"$f":"\"'='\" & MID(CELL(\"address\",INDIRECT(B167)),$I$2+1,100)","v":"'='Section C. Local CSBG Resources'!$H$74"},{"$f":" IF(ISBLANK(M2C3lxOtherFedCFDA),\"\",M2C3lxOtherFedCFDA)","v":""},"Text","M2C3lxOtherFedCFDA"]
["C.3l.x","M2C3lxOtherFedDollar",{"$f":"\"'='\" & MID(CELL(\"address\",INDIRECT(B168)),$I$2+1,100)","v":"'='Section C. Local CSBG Resources'!$J$74"},{"$f":" IF(ISBLANK(M2C3lxOtherFedDollar),\"\",M2C3lxOtherFedDollar)","v":""},"Number","M2C3lxOtherFedDollar"]
["C.3m","M2C3mTotalOtherFed",{"$f":"\"'='\" & MID(CELL(\"address\",INDIRECT(B169)),$I$2+1,100)","v":"'='Section C. Local CSBG Resources'!$J$76"},{"$f":" IF(ISBLANK(M2C3mTotalOtherFed),\"\",M2C3mTotalOtherFed)","v":296212},"Number","M2C3mTotalOtherFed"]
["C.3n","M2C3nTotalFedNonCSBG",{"$f":"\"'='\" & MID(CELL(\"address\",INDIRECT(B170)),$I$2+1,100)","v":"'='Section C. Local CSBG Resources'!$J$77"},{"$f":" IF(ISBLANK(M2C3nTotalFedNonCSBG),\"\",M2C3nTotalFedNonCSBG)","v":2411090.75},"Number","M2C3nTotalFedNonCSBG"]
["C.4a","M2C4aStateCSBG",{"$f":"\"'='\" & MID(CELL(\"address\",INDIRECT(B171)),$I$2+1,100)","v":"'='Section C. Local CSBG Resources'!$J$82"},{"$f":" IF(ISBLANK(M2C4aStateCSBG),\"\",M2C4aStateCSBG)","v":""},"Number","M2C4aStateCSBG"]
["C.4b","M2C4bStateHousing",{"$f":"\"'='\" & MID(CELL(\"address\",INDIRECT(B172)),$I$2+1,100)","v":"'='Section C. Local CSBG Resources'!$J$83"},{"$f":" IF(ISBLANK(M2C4bStateHousing),\"\",M2C4bStateHousing)","v":""},"Number","M2C4bStateHousing"]
["C.4c","M2C4cStateNutrition",{"$f":"\"'='\" & MID(CELL(\"address\",INDIRECT(B173)),$I$2+1,100)","v":"'='Section C. Local CSBG Resources'!$J$84"},{"$f":" IF(ISBLANK(M2C4cStateNutrition),\"\",M2C4cStateNutrition)","v":""},"Number","M2C4cStateNutrition"]
["C.4d","M2C4dStateEarlyChild",{"$f":"\"'='\" & MID(CELL(\"address\",INDIRECT(B174)),$I$2+1,100)","v":"'='Section C. Local CSBG Resources'!$J$85"},{"$f":" IF(ISBLANK(M2C4dStateEarlyChild),\"\",M2C4dStateEarlyChild)","v":""},"Number","M2C4dStateEarlyChild"]
["C.4e","M2C4eStateEnergy",{"$f":"\"'='\" & MID(CELL(\"address\",INDIRECT(B175)),$I$2+1,100)","v":"'='Section C. Local CSBG Resources'!$J$86"},{"$f":" IF(ISBLANK(M2C4eStateEnergy),\"\",M2C4eStateEnergy)","v":""},"Number","M2C4eStateEnergy"]
["C.4f","M2C4fStateHealth",{"$f":"\"'='\" & MID(CELL(\"address\",INDIRECT(B176)),$I$2+1,100)","v":"'='Section C. Local CSBG Resources'!$J$87"},{"$f":" IF(ISBLANK(M2C4fStateHealth),\"\",M2C4fStateHealth)","v":""},"Number","M2C4fStateHealth"]
["C.4g","M2C4gStateYouthDev",{"$f":"\"'='\" & MID(CELL(\"address\",INDIRECT(B177)),$I$2+1,100)","v":"'='Section C. Local CSBG Resources'!$J$88"},{"$f":" IF(ISBLANK(M2C4gStateYouthDev),\"\",M2C4gStateYouthDev)","v":""},"Number","M2C4gStateYouthDev"]
["C.4h","M2C4hStateEmploymentTraining",{"$f":"\"'='\" & MID(CELL(\"address\",INDIRECT(B178)),$I$2+1,100)","v":"'='Section C. Local CSBG Resources'!$J$89"},{"$f":" IF(ISBLANK(M2C4hStateEmploymentTraining),\"\",M2C4hStateEmploymentTraining)","v":""},"Number","M2C4hStateEmploymentTraining"]
["C.4i","M2C4iStateSenior",{"$f":"\"'='\" & MID(CELL(\"address\",INDIRECT(B179)),$I$2+1,100)","v":"'='Section C. Local CSBG Resources'!$J$90"},{"$f":" IF(ISBLANK(M2C4iStateSenior),\"\",M2C4iStateSenior)","v":""},"Number","M2C4iStateSenior"]
["C.4j","M2C4jStateTransportation",{"$f":"\"'='\" & MID(CELL(\"address\",INDIRECT(B180)),$I$2+1,100)","v":"'='Section C. Local CSBG Resources'!$J$91"},{"$f":" IF(ISBLANK(M2C4jStateTransportation),\"\",M2C4jStateTransportation)","v":""},"Number","M2C4jStateTransportation"]
["C.4k","M2C4kStateEducation",{"$f":"\"'='\" & MID(CELL(\"address\",INDIRECT(B181)),$I$2+1,100)","v":"'='Section C. Local CSBG Resources'!$J$92"},{"$f":" IF(ISBLANK(M2C4kStateEducation),\"\",M2C4kStateEducation)","v":""},"Number","M2C4kStateEducation"]
["C.4l","M2C4lStateRuralEcon",{"$f":"\"'='\" & MID(CELL(\"address\",INDIRECT(B182)),$I$2+1,100)","v":"'='Section C. Local CSBG Resources'!$J$93"},{"$f":" IF(ISBLANK(M2C4lStateRuralEcon),\"\",M2C4lStateRuralEcon)","v":""},"Number","M2C4lStateRuralEcon"]
["C.4m","M2C4mStateFamilyDev",{"$f":"\"'='\" & MID(CELL(\"address\",INDIRECT(B183)),$I$2+1,100)","v":"'='Section C. Local CSBG Resources'!$J$94"},{"$f":" IF(ISBLANK(M2C4mStateFamilyDev),\"\",M2C4mStateFamilyDev)","v":""},"Number","M2C4mStateFamilyDev"]
["C.4n.i.oth","M2C4niOtherStateName",{"$f":"\"'='\" & MID(CELL(\"address\",INDIRECT(B184)),$I$2+1,100)","v":"'='Section C. Local CSBG Resources'!$E$96"},{"$f":" IF(ISBLANK(M2C4niOtherStateName),\"\",M2C4niOtherStateName)","v":""},"Text","M2C4niOtherStateName"]
["C.4n.i","M2C4niOtherStateDollar",{"$f":"\"'='\" & MID(CELL(\"address\",INDIRECT(B185)),$I$2+1,100)","v":"'='Section C. Local CSBG Resources'!$J$96"},{"$f":" IF(ISBLANK(M2C4niOtherStateDollar),\"\",M2C4niOtherStateDollar)","v":""},"Number","M2C4niOtherStateDollar"]
["C.4n.ii.oth","M2C4niiOtherStateName",{"$f":"\"'='\" & MID(CELL(\"address\",INDIRECT(B186)),$I$2+1,100)","v":"'='Section C. Local CSBG Resources'!$E$97"},{"$f":" IF(ISBLANK(M2C4niiOtherStateName),\"\",M2C4niiOtherStateName)","v":""},"Text","M2C4niiOtherStateName"]
["C.4n.ii","M2C4niiOtherStateDollar",{"$f":"\"'='\" & MID(CELL(\"address\",INDIRECT(B187)),$I$2+1,100)","v":"'='Section C. Local CSBG Resources'!$J$97"},{"$f":" IF(ISBLANK(M2C4niiOtherStateDollar),\"\",M2C4niiOtherStateDollar)","v":""},"Number","M2C4niiOtherStateDollar"]
["C.4n.iii.oth","M2C4niiiOtherStateName",{"$f":"\"'='\" & MID(CELL(\"address\",INDIRECT(B188)),$I$2+1,100)","v":"'='Section C. Local CSBG Resources'!$E$98"},{"$f":" IF(ISBLANK(M2C4niiiOtherStateName),\"\",M2C4niiiOtherStateName)","v":""},"Text","M2C4niiiOtherStateName"]
["C.4n.iii","M2C4niiiOtherStateDollar",{"$f":"\"'='\" & MID(CELL(\"address\",INDIRECT(B189)),$I$2+1,100)","v":"'='Section C. Local CSBG Resources'!$J$98"},{"$f":" IF(ISBLANK(M2C4niiiOtherStateDollar),\"\",M2C4niiiOtherStateDollar)","v":""},"Number","M2C4niiiOtherStateDollar"]
["C.4n.iv.oth","M2C4nivOtherStateName",{"$f":"\"'='\" & MID(CELL(\"address\",INDIRECT(B190)),$I$2+1,100)","v":"'='Section C. Local CSBG Resources'!$E$99"},{"$f":" IF(ISBLANK(M2C4nivOtherStateName),\"\",M2C4nivOtherStateName)","v":""},"Text","M2C4nivOtherStateName"]
["C.4n.iv","M2C4nivOtherStateDollar",{"$f":"\"'='\" & MID(CELL(\"address\",INDIRECT(B191)),$I$2+1,100)","v":"'='Section C. Local CSBG Resources'!$J$99"},{"$f":" IF(ISBLANK(M2C4nivOtherStateDollar),\"\",M2C4nivOtherStateDollar)","v":""},"Number","M2C4nivOtherStateDollar"]
["C.4n.v.oth","M2C4nvOtherStateName",{"$f":"\"'='\" & MID(CELL(\"address\",INDIRECT(B192)),$I$2+1,100)","v":"'='Section C. Local CSBG Resources'!$E$100"},{"$f":" IF(ISBLANK(M2C4nvOtherStateName),\"\",M2C4nvOtherStateName)","v":""},"Text","M2C4nvOtherStateName"]
["C.4n.v","M2C4nvOtherStateDollar",{"$f":"\"'='\" & MID(CELL(\"address\",INDIRECT(B193)),$I$2+1,100)","v":"'='Section C. Local CSBG Resources'!$J$100"},{"$f":" IF(ISBLANK(M2C4nvOtherStateDollar),\"\",M2C4nvOtherStateDollar)","v":""},"Number","M2C4nvOtherStateDollar"]
["C.4n.vi.oth","M2C4nviOtherStateName",{"$f":"\"'='\" & MID(CELL(\"address\",INDIRECT(B194)),$I$2+1,100)","v":"'='Section C. Local CSBG Resources'!$E$101"},{"$f":" IF(ISBLANK(M2C4nviOtherStateName),\"\",M2C4nviOtherStateName)","v":""},"Text","M2C4nviOtherStateName"]
["C.4n.vi","M2C4nviOtherStateDollar",{"$f":"\"'='\" & MID(CELL(\"address\",INDIRECT(B195)),$I$2+1,100)","v":"'='Section C. Local CSBG Resources'!$J$101"},{"$f":" IF(ISBLANK(M2C4nviOtherStateDollar),\"\",M2C4nviOtherStateDollar)","v":""},"Number","M2C4nviOtherStateDollar"]
["C.4n.vii.oth","M2C4nviiOtherStateName",{"$f":"\"'='\" & MID(CELL(\"address\",INDIRECT(B196)),$I$2+1,100)","v":"'='Section C. Local CSBG Resources'!$E$102"},{"$f":" IF(ISBLANK(M2C4nviiOtherStateName),\"\",M2C4nviiOtherStateName)","v":""},"Text","M2C4nviiOtherStateName"]
["C.4n.vii","M2C4nviiOtherStateDollar",{"$f":"\"'='\" & MID(CELL(\"address\",INDIRECT(B197)),$I$2+1,100)","v":"'='Section C. Local CSBG Resources'!$J$102"},{"$f":" IF(ISBLANK(M2C4nviiOtherStateDollar),\"\",M2C4nviiOtherStateDollar)","v":""},"Number","M2C4nviiOtherStateDollar"]
["C.4n.viii.oth","M2C4nviiiOtherStateName",{"$f":"\"'='\" & MID(CELL(\"address\",INDIRECT(B198)),$I$2+1,100)","v":"'='Section C. Local CSBG Resources'!$E$103"},{"$f":" IF(ISBLANK(M2C4nviiiOtherStateName),\"\",M2C4nviiiOtherStateName)","v":""},"Text","M2C4nviiiOtherStateName"]
["C.4n.viii","M2C4nviiiOtherStateDollar",{"$f":"\"'='\" & MID(CELL(\"address\",INDIRECT(B199)),$I$2+1,100)","v":"'='Section C. Local CSBG Resources'!$J$103"},{"$f":" IF(ISBLANK(M2C4nviiiOtherStateDollar),\"\",M2C4nviiiOtherStateDollar)","v":""},"Number","M2C4nviiiOtherStateDollar"]
["C.4n.ix.oth","M2C4nixOtherStateName",{"$f":"\"'='\" & MID(CELL(\"address\",INDIRECT(B200)),$I$2+1,100)","v":"'='Section C. Local CSBG Resources'!$E$104"},{"$f":" IF(ISBLANK(M2C4nixOtherStateName),\"\",M2C4nixOtherStateName)","v":""},"Text","M2C4nixOtherStateName"]
["C.4n.ix","M2C4nixOtherStateDollar",{"$f":"\"'='\" & MID(CELL(\"address\",INDIRECT(B201)),$I$2+1,100)","v":"'='Section C. Local CSBG Resources'!$J$104"},{"$f":" IF(ISBLANK(M2C4nixOtherStateDollar),\"\",M2C4nixOtherStateDollar)","v":""},"Number","M2C4nixOtherStateDollar"]
["C.4n.x.oth","M2C4nxOtherStateName",{"$f":"\"'='\" & MID(CELL(\"address\",INDIRECT(B202)),$I$2+1,100)","v":"'='Section C. Local CSBG Resources'!$E$105"},{"$f":" IF(ISBLANK(M2C4nxOtherStateName),\"\",M2C4nxOtherStateName)","v":""},"Text","M2C4nxOtherStateName"]
["C.4n.x","M2C4nxOtherStateDollar",{"$f":"\"'='\" & MID(CELL(\"address\",INDIRECT(B203)),$I$2+1,100)","v":"'='Section C. Local CSBG Resources'!$J$105"},{"$f":" IF(ISBLANK(M2C4nxOtherStateDollar),\"\",M2C4nxOtherStateDollar)","v":""},"Number","M2C4nxOtherStateDollar"]
["C.4o","M2C4oOtherStateTotal",{"$f":"\"'='\" & MID(CELL(\"address\",INDIRECT(B204)),$I$2+1,100)","v":"'='Section C. Local CSBG Resources'!$J$106"},{"$f":" IF(ISBLANK(M2C4oOtherStateTotal),\"\",M2C4oOtherStateTotal)","v":0},"Number","M2C4oOtherStateTotal"]
["C.4p","M2C4pTotalState",{"$f":"\"'='\" & MID(CELL(\"address\",INDIRECT(B205)),$I$2+1,100)","v":"'='Section C. Local CSBG Resources'!$J$108"},{"$f":" IF(ISBLANK(M2C4pTotalState),\"\",M2C4pTotalState)","v":0},"Number","M2C4pTotalState"]
["C.4q","M2C4qStateFedEst",{"$f":"\"'='\" & MID(CELL(\"address\",INDIRECT(B206)),$I$2+1,100)","v":"'='Section C. Local CSBG Resources'!$J$109"},{"$f":" IF(ISBLANK(M2C4qStateFedEst),\"\",M2C4qStateFedEst)","v":""},"Number","M2C4qStateFedEst"]
["C.5a","M2C5aLocalUnrestricted",{"$f":"\"'='\" & MID(CELL(\"address\",INDIRECT(B207)),$I$2+1,100)","v":"'='Section C. Local CSBG Resources'!$J$113"},{"$f":" IF(ISBLANK(M2C5aLocalUnrestricted),\"\",M2C5aLocalUnrestricted)","v":""},"Number","M2C5aLocalUnrestricted"]
["C.5b","M2C5bLocalRestricted",{"$f":"\"'='\" & MID(CELL(\"address\",INDIRECT(B208)),$I$2+1,100)","v":"'='Section C. Local CSBG Resources'!$J$114"},{"$f":" IF(ISBLANK(M2C5bLocalRestricted),\"\",M2C5bLocalRestricted)","v":""},"Number","M2C5bLocalRestricted"]
["C.5c","M2C5cLocalContractServ",{"$f":"\"'='\" & MID(CELL(\"address\",INDIRECT(B209)),$I$2+1,100)","v":"'='Section C. Local CSBG Resources'!$J$115"},{"$f":" IF(ISBLANK(M2C5cLocalContractServ),\"\",M2C5cLocalContractServ)","v":""},"Number","M2C5cLocalContractServ"]
["C.5d","M2C5dLocalInKind",{"$f":"\"'='\" & MID(CELL(\"address\",INDIRECT(B210)),$I$2+1,100)","v":"'='Section C. Local CSBG Resources'!$J$116"},{"$f":" IF(ISBLANK(M2C5dLocalInKind),\"\",M2C5dLocalInKind)","v":""},"Number","M2C5dLocalInKind"]
["C.5e","M2C5eTotalLocal",{"$f":"\"'='\" & MID(CELL(\"address\",INDIRECT(B211)),$I$2+1,100)","v":"'='Section C. Local CSBG Resources'!$J$118"},{"$f":" IF(ISBLANK(M2C5eTotalLocal),\"\",M2C5eTotalLocal)","v":0},"Number","M2C5eTotalLocal"]
["C.5f","M2C5fLocalFedEst",{"$f":"\"'='\" & MID(CELL(\"address\",INDIRECT(B212)),$I$2+1,100)","v":"'='Section C. Local CSBG Resources'!$J$120"},{"$f":" IF(ISBLANK(M2C5fLocalFedEst),\"\",M2C5fLocalFedEst)","v":""},"Number","M2C5fLocalFedEst"]
["C.6a","M2C6aPrivateFoundations",{"$f":"\"'='\" & MID(CELL(\"address\",INDIRECT(B213)),$I$2+1,100)","v":"'='Section C. Local CSBG Resources'!$J$124"},{"$f":" IF(ISBLANK(M2C6aPrivateFoundations),\"\",M2C6aPrivateFoundations)","v":""},"Number","M2C6aPrivateFoundations"]
["C.6b","M2C6bPrivateOtherDonated",{"$f":"\"'='\" & MID(CELL(\"address\",INDIRECT(B214)),$I$2+1,100)","v":"'='Section C. Local CSBG Resources'!$J$125"},{"$f":" IF(ISBLANK(M2C6bPrivateOtherDonated),\"\",M2C6bPrivateOtherDonated)","v":""},"Number","M2C6bPrivateOtherDonated"]
["C.6c","M2C6cPrivateValueOther",{"$f":"\"'='\" & MID(CELL(\"address\",INDIRECT(B215)),$I$2+1,100)","v":"'='Section C. Local CSBG Resources'!$J$126"},{"$f":" IF(ISBLANK(M2C6cPrivateValueOther),\"\",M2C6cPrivateValueOther)","v":""},"Number","M2C6cPrivateValueOther"]
["C.6d","M2C6dPrivateInKind",{"$f":"\"'='\" & MID(CELL(\"address\",INDIRECT(B216)),$I$2+1,100)","v":"'='Section C. Local CSBG Resources'!$J$127"},{"$f":" IF(ISBLANK(M2C6dPrivateInKind),\"\",M2C6dPrivateInKind)","v":""},"Number","M2C6dPrivateInKind"]
["C.6e","M2C6ePrivateClientPayments",{"$f":"\"'='\" & MID(CELL(\"address\",INDIRECT(B217)),$I$2+1,100)","v":"'='Section C. Local CSBG Resources'!$J$128"},{"$f":" IF(ISBLANK(M2C6ePrivateClientPayments),\"\",M2C6ePrivateClientPayments)","v":""},"Number","M2C6ePrivateClientPayments"]
["C.6f","M2C6fPrivateEntityGoods",{"$f":"\"'='\" & MID(CELL(\"address\",INDIRECT(B218)),$I$2+1,100)","v":"'='Section C. Local CSBG Resources'!$J$129"},{"$f":" IF(ISBLANK(M2C6fPrivateEntityGoods),\"\",M2C6fPrivateEntityGoods)","v":""},"Number","M2C6fPrivateEntityGoods"]
["C.6g","M2C6gTotalPrivate",{"$f":"\"'='\" & MID(CELL(\"address\",INDIRECT(B219)),$I$2+1,100)","v":"'='Section C. Local CSBG Resources'!$J$132"},{"$f":" IF(ISBLANK(M2C6gTotalPrivate),\"\",M2C6gTotalPrivate)","v":0},"Number","M2C6gTotalPrivate"]
["C.6h","M2C6hPrivateFedEst",{"$f":"\"'='\" & MID(CELL(\"address\",INDIRECT(B220)),$I$2+1,100)","v":"'='Section C. Local CSBG Resources'!$J$134"},{"$f":" IF(ISBLANK(M2C6hPrivateFedEst),\"\",M2C6hPrivateFedEst)","v":""},"Number","M2C6hPrivateFedEst"]
["C 7","M2C7TotalNonCSBG",{"$f":"\"'='\" & MID(CELL(\"address\",INDIRECT(B221)),$I$2+1,100)","v":"'='Section C. Local CSBG Resources'!$J$137"},{"$f":" IF(ISBLANK(M2C7TotalNonCSBG),\"\",M2C7TotalNonCSBG)","v":2411090.75},"Number","M2C7TotalNonCSBG"]
["C 8","M2C8TotalWithCSBG",{"$f":"\"'='\" & MID(CELL(\"address\",INDIRECT(B222)),$I$2+1,100)","v":"'='Section C. Local CSBG Resources'!$J$138"},{"$f":" IF(ISBLANK(M2C8TotalWithCSBG),\"\",M2C8TotalWithCSBG)","v":2441306.75},"Number","M2C8TotalWithCSBG"]
["C_Comments","M2CComments",{"$f":"\"'='\" & MID(CELL(\"address\",INDIRECT(B223)),$I$2+1,100)","v":"'='Section C. Local CSBG Resources'!$B$142"},{"$f":" IF(ISBLANK(M2CComments),\"\",M2CComments)","v":""},"Memo","M2CComments",5000]

{"sheet":"Lookups","index":7,"n_rows":26,"n_cols":8,"rows_kept":26,"cut":false,"hidden":true,"merged":[]}
[]
[]
[null,"EditText_WsName","Housing NPIs"]
[null,"EditText_FieldName","FNPI 4z.1"]
[null,"EditText_Text","fff"]
[null,"EditText_Status","Cancel"]
[null,"EditText_MaxLength",4000]
[]
[null,"Max_Errors",500]
[]
[null,"XML_Filename","D:\\Work\\NASCSP - SmartForms\\SmartForms 2019-20\\Module 4 SmartForm - Employment Tab - 2019-20.xml"]
[]
[]
[]
[null,"A1_Period",{"$f":"COUNTIF(C16:C18,TRUE)","v":1}]
[null,"Period_1",false,{"$f":"Period_1","v":false},null,null,null,false]
[null,"Period_2",true,{"$f":"Period_2","v":true},null,null,null,true]
[null,"Period_3",false,{"$f":"Period_3","v":false},null,null,null,false]
[]
[null,"A41_Activities",{"$f":"COUNTIF(Lookups!C22:C26,TRUE)","v":3}]
[null,null,null,null,null,null,"Prior Year"]
[null,null,false,"community",null,null,false]
[null,null,true,"data mgmt",null,null,false]
[null,"A41_Other",true,"other",null,null,true]
[null,null,false,"planning",null,null,false]
[null,null,true,"training",null,null,true]